Workbook

Sheet Data
A3: سيريال | B3: شهر الاصدار | C3: إصدار/إلغاء | D3: ACCount | E3: InsuranCe Type | F3: InsuranCe Com | G3: PoliCy.No | H3: Customer Name | I3: Brand | J3: Model | K3: Chassis | L3: مبلغ التأمين | M3: القسط الاساسى | N3: القسط الأجمالى | O3: تامين العميل | P3: تامين العميل فى الريكوست | Q3: نسبة الاصدار | R3: المحصل فعليا | S3: موقف التحصيل | T3: طريقة التحصيل | U3: صافي مستحق شركة التأمين | V3: سداد شركة التأمين | W3: نسبة العمولة | X3: العمولة ( المتوقعة) بعد الخصم والتحصيل | Y3: العمولة ( المتوقعة) المحصلة فعليا | Z3: العمولة الفعلية المستلمة | AA3: موقف العمولة | AB3: الشهر
A4: 1 | B4: 2020-10-10 | C4: اصدار | D4: معارض | E4: سيارات | F4: A | G4: POLICY 1 | H4: CUST 1 | I4: BMW | J4: BMW | K4: 12546 | L4: 715400 | M4: 25237 | N4: 26828 | O4: 26828 | P4: 26827 | Q4: =Jan[[#This Row],[تامين العميل فى الريكوست]]/Jan[[#This Row],[مبلغ التأمين]] -> 0.03749930109 | S4: محصل | T4: Cash | U4: 18436.6975 | V4: مسددة | W4: 0.35 | X4: 1000 | AA4: محصلة | AB4: =MONTH(Jan[[#This Row],[شهر الاصدار]]) -> 10
A5: 2 | B5: 2020-01-01 | C5: اصدار | D5: معارض | E5: سيارات | F5: A | G5: POLICY 2 | H5: CUST 2 | I5: BMW | J5: BMW | K5: 12547 | L5: 1298000 | M5: 45866 | N5: 48675 | O5: 48675 | P5: 48675 | Q5: =Jan[[#This Row],[تامين العميل فى الريكوست]]/Jan[[#This Row],[مبلغ التأمين]] -> 0.0375 | S5: غير محصل | T5: visa | U5: 33424.555 | V5: غير مسددة | W5: 0.35 | X5: 500 | AA5: واجبة التحصيل | AB5: =MONTH(Jan[[#This Row],[شهر الاصدار]]) -> 1
A6: 3 | B6: 2020-01-01 | C6: اصدار | D6: معارض | E6: سيارات | F6: A | G6: POLICY 3 | H6: CUST 3 | I6: BMW | J6: BMW | K6: 12548 | L6: 2200000 | M6: 77807 | N6: 82500 | O6: 82500 | P6: 66000 | Q6: =Jan[[#This Row],[تامين العميل فى الريكوست]]/Jan[[#This Row],[مبلغ التأمين]] -> 0.03 | S6: محصل | T6: Bank Trf | U6: 56629.1725 | V6: مسددة | W6: 0.35 | X6: 600 | AA6: مؤجله | AB6: =MONTH(Jan[[#This Row],[شهر الاصدار]]) -> 1
A7: 5 | B7: 2020-01-01 | C7: اصدار | D7: معارض | E7: سيارات | F7: A | G7: POLICY 4 | H7: CUST 4 | I7: BMW | J7: BMW | K7: 12549 | L7: 2500000 | M7: 88430 | N7: 93750 | O7: 93750 | P7: 93750 | Q7: =Jan[[#This Row],[تامين العميل فى الريكوست]]/Jan[[#This Row],[مبلغ التأمين]] -> 0.0375 | S7: غير محصل | T7: تقسيط | U7: 64347.025 | V7: غير مسددة | W7: 0.35 | X7: 601 | AA7: غير محصل | AB7: =MONTH(Jan[[#This Row],[شهر الاصدار]]) -> 1
A8: 6 | B8: 2020-01-01 | C8: اصدار | D8: معارض | E8: سيارات | F8: A | G8: POLICY 5 | H8: CUST 5 | I8: BMW | J8: BMW | K8: 12550 | L8: 1298000 | M8: 45866 | N8: 7000 | O8: 48675 | P8: 48675 | Q8: =Jan[[#This Row],[تامين العميل فى الريكوست]]/Jan[[#This Row],[مبلغ التأمين]] -> 0.0375 | S8: محصل | T8: Cash | U8: 33424.555 | V8: مسددة | W8: 0.35 | X8: 602 | AA8: محصلة | AB8: =MONTH(Jan[[#This Row],[شهر الاصدار]]) -> 1
A9: 7 | B9: 2020-08-01 | C9: اصدار | D9: معارض | E9: سيارات | F9: A | G9: POLICY 6 | H9: CUST 6 | I9: BMW | J9: BMW | K9: 12551 | L9: 1850000 | M9: 65413 | N9: 69375 | O9: 69375 | P9: 55500 | Q9: =Jan[[#This Row],[تامين العميل فى الريكوست]]/Jan[[#This Row],[مبلغ التأمين]] -> 0.03 | S9: غير محصل | T9: visa | U9: 47625.1775 | V9: غير مسددة | W9: 0.35 | X9: 603 | AA9: واجبة التحصيل | AB9: =MONTH(Jan[[#This Row],[شهر الاصدار]]) -> 8
A10: 8 | B10: 2020-01-01 | C10: اصدار | D10: تجديدات | E10: سيارات | F10: C | G10: POLICY 7 | H10: CUST 7 | I10: BMW | J10: BMW | K10: 12552 | L10: 640062 | M10: 15059 | N10: 16001 | O10: 20802.015 | P10: 19202 | Q10: =Jan[[#This Row],[تامين العميل فى الريكوست]]/Jan[[#This Row],[مبلغ التأمين]] -> 0.03000021873 | S10: محصل | T10: Bank Trf | U10: 9563.2775 | V10: مسددة | W10: 0.45 | X10: 604 | AA10: مؤجله | AB10: =MONTH(Jan[[#This Row],[شهر الاصدار]]) -> 1
A11: 9 | B11: 2020-01-01 | C11: اصدار | D11: اداره | E11: سيارات | F11: D | G11: POLICY 8 | H11: CUST 8 | I11: NON BMW | J11: FIAT | K11: 12553 | L11: 220000 | M11: 5610 | N11: 6050 | O11: 6050 | P11: 6050 | Q11: =Jan[[#This Row],[تامين العميل فى الريكوست]]/Jan[[#This Row],[مبلغ التأمين]] -> 0.0275 | S11: غير محصل | T11: تقسيط | U11: 5250.575 | V11: غير مسددة | W11: 0.15 | X11: 605 | AA11: غير محصل | AB11: =MONTH(Jan[[#This Row],[شهر الاصدار]]) -> 1
A12: 10 | B12: 2020-01-01 | C12: اصدار | D12: تجديدات | E12: سيارات | F12: C | G12: POLICY 9 | H12: CUST 9 | I12: BMW | J12: Bmw | K12: 12554 | L12: 1168200 | M12: 27530 | N12: 29207 | O12: 40887 | P12: 41387 | Q12: =Jan[[#This Row],[تامين العميل فى الريكوست]]/Jan[[#This Row],[مبلغ التأمين]] -> 0.0354280089 | S12: محصل | T12: Cash | U12: 17437.925 | V12: مسددة | W12: 0.45 | X12: 606 | AA12: محصلة | AB12: =MONTH(Jan[[#This Row],[شهر الاصدار]]) -> 1
A13: 13 | B13: 2020-01-01 | C13: اصدار | D13: تجديدات | E13: سيارات | F13: C | G13: POLICY 10 | H13: CUST 10 | I13: BMW | J13: Bmw | K13: 12555 | L13: 740000 | M13: 17419 | N13: 18500 | O13: 26000 | P13: 26000 | Q13: =Jan[[#This Row],[تامين العميل فى الريكوست]]/Jan[[#This Row],[مبلغ التأمين]] -> 0.03513513514 | S13: غير محصل | T13: visa | U13: 11053.3775 | V13: غير مسددة | W13: 0.45 | X13: 607 | AA13: واجبة التحصيل | AB13: =MONTH(Jan[[#This Row],[شهر الاصدار]]) -> 1
A14: 15 | B14: 2020-01-01 | C14: اصدار | D14: تجديدات | E14: سيارات | F14: C | G14: POLICY 11 | H14: CUST 11 | I14: BMW | J14: Bmw | K14: 12556 | L14: 656100 | M14: 15439 | N14: 16403 | O14: 24604 | P14: 22963.5 | Q14: =Jan[[#This Row],[تامين العميل فى الريكوست]]/Jan[[#This Row],[مبلغ التأمين]] -> 0.035 | S14: محصل | T14: Bank Trf | U14: 9802.8275 | V14: مسددة | W14: 0.45 | X14: 608 | AA14: مؤجله | AB14: =MONTH(Jan[[#This Row],[شهر الاصدار]]) -> 1
A15: 18 | B15: 2020-01-01 | C15: اصدار | D15: تجديدات | E15: سيارات | F15: C | G15: POLICY 12 | H15: CUST 12 | I15: BMW | J15: Bmw | K15: 12557 | L15: 450000 | M15: 10573 | N15: 11250 | O15: 15750 | P15: 15750 | Q15: =Jan[[#This Row],[تامين العميل فى الريكوست]]/Jan[[#This Row],[مبلغ التأمين]] -> 0.035 | S15: غير محصل | T15: تقسيط | U15: 6730.0425 | V15: غير مسددة | W15: 0.45 | X15: 609 | AA15: غير محصل | AB15: =MONTH(Jan[[#This Row],[شهر الاصدار]]) -> 1
A16: 25 | B16: 2020-01-01 | C16: اصدار | D16: تجديدات | E16: سيارات | F16: C | G16: POLICY 13 | H16: CUST 13 | I16: BMW | J16: Bmw | K16: 12558 | L16: 738000 | M16: 17372 | N16: 18450 | O16: 31365 | P16: 31365 | Q16: =Jan[[#This Row],[تامين العميل فى الريكوست]]/Jan[[#This Row],[مبلغ التأمين]] -> 0.0425 | S16: محصل | T16: Cash | U16: 11023.47 | V16: مسددة | W16: 0.45 | X16: 610 | AA16: محصلة | AB16: =MONTH(Jan[[#This Row],[شهر الاصدار]]) -> 1
A17: 32 | B17: 2020-01-01 | C17: اصدار | D17: تجديدات | E17: سيارات | F17: C | G17: POLICY 14 | H17: CUST 14 | I17: BMW | J17: Bmw | K17: 12559 | L17: 684000 | M17: 16097 | N17: 17100 | O17: 22230 | P17: 23940 | Q17: =Jan[[#This Row],[تامين العميل فى الريكوست]]/Jan[[#This Row],[مبلغ التأمين]] -> 0.035 | S17: غير محصل | T17: visa | U17: 10218.5325 | V17: غير مسددة | W17: 0.45 | X17: 611 | AA17: واجبة التحصيل | AB17: =MONTH(Jan[[#This Row],[شهر الاصدار]]) -> 1
A18: 45 | B18: 2020-01-01 | C18: اصدار | D18: تجديدات | E18: سيارات | F18: C | G18: POLICY 15 | H18: CUST 15 | I18: BMW | J18: Bmw | K18: 12560 | L18: 1480000 | M18: 34890 | N18: 37002 | O18: 44400 | P18: 51800 | Q18: =Jan[[#This Row],[تامين العميل فى الريكوست]]/Jan[[#This Row],[مبلغ التأمين]] -> 0.035 | S18: محصل | T18: Bank Trf | U18: 22086.525 | W18: 0.45 | X18: 612 | AA18: مؤجله | AB18: =MONTH(Jan[[#This Row],[شهر الاصدار]]) -> 1
A19: 46 | B19: 2020-01-01 | C19: اصدار | D19: اداره | E19: سيارات | F19: F | G19: POLICY 16 | H19: CUST 16 | I19: NON BMW | J19: MERCEDES | K19: 12561 | L19: 500000 | M19: 14113.31 | N19: 15000 | O19: 15000 | P19: 11250 | Q19: =Jan[[#This Row],[تامين العميل فى الريكوست]]/Jan[[#This Row],[مبلغ التأمين]] -> 0.0225 | S19: محصل | T19: تقسيط | U19: 10977.70665 | V19: غير مسددة | W19: 0.3 | X19: 613 | AA19: غير محصل | AB19: =MONTH(Jan[[#This Row],[شهر الاصدار]]) -> 1
A20: 52 | B20: 2020-01-01 | C20: اصدار | D20: تجديدات | E20: سيارات | F20: C | G20: POLICY 17 | H20: CUST 17 | I20: BMW | J20: Bmw | K20: 12562 | L20: 1305000 | M20: 30757 | N20: 32625 | O20: 48938 | P20: 45675 | Q20: =Jan[[#This Row],[تامين العميل فى الريكوست]]/Jan[[#This Row],[مبلغ التأمين]] -> 0.035 | S20: محصل | T20: Cash | U20: 19476.3825 | V20: مسددة | W20: 0.45 | X20: 614 | AA20: محصلة | AB20: =MONTH(Jan[[#This Row],[شهر الاصدار]]) -> 1
A21: 56 | B21: 2020-01-01 | C21: اصدار | D21: تجديدات | E21: سيارات | F21: C | G21: POLICY 18 | H21: CUST 18 | I21: BMW | J21: Bmw | K21: 12563 | L21: -50000 | M21: -1182 | N21: -1250 | O21: -1250 | P21: -1750 | Q21: =Jan[[#This Row],[تامين العميل فى الريكوست]]/Jan[[#This Row],[مبلغ التأمين]] -> 0.035 | S21: محصل | T21: visa | U21: -744.695 | V21: غير مسددة | W21: 0.45 | X21: 615 | AA21: واجبة التحصيل | AB21: =MONTH(Jan[[#This Row],[شهر الاصدار]]) -> 1
A22: 61 | B22: 2020-01-01 | C22: اصدار | D22: تجديدات | E22: سيارات | F22: F | G22: POLICY 19 | H22: CUST 19 | I22: BMW | J22: Bmw | K22: 12564 | L22: 1305000 | M22: 52322 | N22: 55463 | O22: 55463 | P22: 45675 | Q22: =Jan[[#This Row],[تامين العميل فى الريكوست]]/Jan[[#This Row],[مبلغ التأمين]] -> 0.035 | S22: محصل | T22: Bank Trf | U22: 33095.345 | W22: 0.45 | X22: 616 | AA22: مؤجله | AB22: =MONTH(Jan[[#This Row],[شهر الاصدار]]) -> 1
A23: 75 | B23: 2020-01-01 | C23: اصدار | D23: تجديدات | E23: سيارات | F23: F | G23: POLICY 20 | H23: CUST 20 | I23: BMW | J23: Bmw | K23: 12565 | L23: 648000 | M23: 25954.67 | N23: 27540 | O23: 27540 | P23: 24300 | Q23: =Jan[[#This Row],[تامين العميل فى الريكوست]]/Jan[[#This Row],[مبلغ التأمين]] -> 0.0375 | S23: محصل | T23: تقسيط | U23: 16444.37858 | V23: غير مسددة | W23: 0.45 | X23: 617 | AA23: غير محصل | AB23: =MONTH(Jan[[#This Row],[شهر الاصدار]]) -> 1
A24: 76 | B24: 2020-01-01 | C24: اصدار | D24: معارض | E24: سيارات | F24: C | G24: POLICY 21 | H24: CUST 21 | I24: BMW | J24: Bmw | K24: 12566 | L24: 1475000 | M24: 52180 | N24: 55312 | O24: 55312 | P24: 55312 | Q24: =Jan[[#This Row],[تامين العميل فى الريكوست]]/Jan[[#This Row],[مبلغ التأمين]] -> 0.03749966102 | S24: محصل | T24: Cash | U24: 33005.05 | V24: مسددة | W24: 0.45 | X24: 618 | AA24: محصلة | AB24: =MONTH(Jan[[#This Row],[شهر الاصدار]]) -> 1
A25: 87 | B25: 2020-01-01 | C25: اصدار | D25: معارض | E25: سيارات | F25: F | G25: POLICY 22 | H25: CUST 22 | I25: BMW | J25: Bmw | K25: 12567 | L25: 1450000 | M25: 58140.7 | N25: 61625 | O25: 61625 | P25: 54375 | Q25: =Jan[[#This Row],[تامين العميل فى الريكوست]]/Jan[[#This Row],[مبلغ التأمين]] -> 0.0375 | S25: محصل | T25: visa | U25: 36769.85075 | V25: غير مسددة | W25: 0.45 | X25: 619 | AA25: واجبة التحصيل | AB25: =MONTH(Jan[[#This Row],[شهر الاصدار]]) -> 1
A26: 90 | B26: 2020-01-01 | C26: اصدار | D26: معارض | E26: سيارات | F26: J | G26: POLICY 23 | H26: CUST 23 | I26: BMW | J26: Bmw | K26: 12568 | L26: 660000 | M26: 24832.5 | N26: 26400 | O26: 26400 | P26: 24750 | Q26: =Jan[[#This Row],[تامين العميل فى الريكوست]]/Jan[[#This Row],[مبلغ التأمين]] -> 0.0375 | S26: محصل | T26: Bank Trf | U26: 15784.10625 | W26: 0.45 | X26: 620 | AA26: مؤجله | AB26: =MONTH(Jan[[#This Row],[شهر الاصدار]]) -> 1
A27: 91 | B27: 2020-01-01 | C27: اصدار | D27: معارض | E27: سيارات | F27: C | G27: POLICY 24 | H27: CUST 24 | I27: BMW | J27: Bmw | K27: 12569 | L27: 730000 | M27: 25800 | N27: 27375 | O27: 27375 | P27: 27375 | Q27: =Jan[[#This Row],[تامين العميل فى الريكوست]]/Jan[[#This Row],[مبلغ التأمين]] -> 0.0375 | S27: محصل | T27: تقسيط | U27: 16345.5 | V27: غير مسددة | W27: 0.45 | X27: 621 | AA27: غير محصل | AB27: =MONTH(Jan[[#This Row],[شهر الاصدار]]) -> 1
A28: 93 | B28: 2020-01-01 | C28: اصدار | D28: تجديدات | E28: سيارات | F28: C | G28: POLICY 25 | H28: CUST 25 | I28: BMW | J28: Bmw | K28: 12570 | L28: 675000 | M28: 23853 | N28: 25314 | O28: 25314 | P28: 23625 | Q28: =Jan[[#This Row],[تامين العميل فى الريكوست]]/Jan[[#This Row],[مبلغ التأمين]] -> 0.035 | S28: محصل | T28: Cash | U28: 15116.8425 | V28: مسددة | W28: 0.45 | X28: 622 | AA28: محصلة | AB28: =MONTH(Jan[[#This Row],[شهر الاصدار]]) -> 1
A29: 101 | B29: 2020-01-01 | C29: اصدار | D29: تجديدات | E29: سيارات | F29: C | G29: POLICY 26 | H29: CUST 26 | I29: BMW | J29: Bmw | K29: 12571 | L29: 440000 | M29: 15530 | N29: 16500 | O29: 16500 | P29: 17600 | Q29: =Jan[[#This Row],[تامين العميل فى الريكوست]]/Jan[[#This Row],[مبلغ التأمين]] -> 0.04 | S29: محصل | T29: visa | U29: 9860.925 | V29: غير مسددة | W29: 0.45 | X29: 623 | AA29: واجبة التحصيل | AB29: =MONTH(Jan[[#This Row],[شهر الاصدار]]) -> 1
A30: 103 | B30: 2020-01-01 | C30: اصدار | D30: تجديدات | E30: سيارات | F30: C | G30: POLICY 27 | H30: CUST 27 | I30: BMW | J30: Bmw | K30: 12572 | L30: 1665000 | M30: 58909 | N30: 62438 | O30: 62438 | P30: 62438 | Q30: =Jan[[#This Row],[تامين العميل فى الريكوست]]/Jan[[#This Row],[مبلغ التأمين]] -> 0.0375003003 | S30: محصل | T30: Bank Trf | U30: 37254.4025 | V30: مسددة | W30: 0.45 | X30: 624 | AA30: مؤجله | AB30: =MONTH(Jan[[#This Row],[شهر الاصدار]]) -> 1
A31: 106 | B31: 2020-01-01 | C31: اصدار | D31: تجديدات | E31: سيارات | F31: C | G31: POLICY 28 | H31: CUST 28 | I31: BMW | J31: Bmw | K31: 12573 | L31: 330000 | M31: 11635 | N31: 12375 | O31: 12375 | P31: 10000 | Q31: =Jan[[#This Row],[تامين العميل فى الريكوست]]/Jan[[#This Row],[مبلغ التأمين]] -> 0.0303030303 | S31: محصل | T31: تقسيط | U31: 7401.0375 | V31: غير مسددة | W31: 0.45 | X31: 625 | AA31: غير محصل | AB31: =MONTH(Jan[[#This Row],[شهر الاصدار]]) -> 1
A32: 107 | B32: 2020-01-01 | C32: اصدار | D32: تجديدات | E32: سيارات | F32: C | G32: POLICY 29 | H32: CUST 29 | I32: BMW | J32: Bmw | K32: 12574 | L32: 810000 | M32: 28633 | N32: 30376 | O32: 30376 | P32: 28350 | Q32: =Jan[[#This Row],[تامين العميل فى الريكوست]]/Jan[[#This Row],[مبلغ التأمين]] -> 0.035 | S32: محصل | T32: Cash | U32: 18135.3925 | V32: مسددة | W32: 0.45 | X32: 626 | AA32: محصلة | AB32: =MONTH(Jan[[#This Row],[شهر الاصدار]]) -> 1
A33: 109 | B33: 2020-01-01 | C33: اصدار | D33: تجديدات | E33: سيارات | F33: C | G33: POLICY 30 | H33: CUST 30 | I33: BMW | J33: Bmw | K33: 12575 | L33: 540000 | M33: 19072 | N33: 20250 | O33: 20250 | P33: 20250 | Q33: =Jan[[#This Row],[تامين العميل فى الريكوست]]/Jan[[#This Row],[مبلغ التأمين]] -> 0.0375 | S33: محصل | T33: visa | U33: 12096.72 | V33: غير مسددة | W33: 0.45 | X33: 627 | AA33: واجبة التحصيل | AB33: =MONTH(Jan[[#This Row],[شهر الاصدار]]) -> 1
A34: 110 | B34: 2020-01-01 | C34: اصدار | D34: تجديدات | E34: سيارات | F34: C | G34: POLICY 31 | H34: CUST 31 | I34: BMW | J34: Bmw | K34: 12576 | L34: 800000 | M34: 28278 | N34: 30000 | O34: 30000 | P34: 30000 | Q34: =Jan[[#This Row],[تامين العميل فى الريكوست]]/Jan[[#This Row],[مبلغ التأمين]] -> 0.0375 | S34: محصل | T34: Bank Trf | U34: 17911.155 | V34: مسددة | W34: 0.45 | X34: 628 | AA34: مؤجله | AB34: =MONTH(Jan[[#This Row],[شهر الاصدار]]) -> 1
A35: 112 | B35: 2020-01-01 | C35: اصدار | D35: تجديدات | E35: سيارات | F35: C | G35: POLICY 32 | H35: CUST 32 | I35: BMW | J35: Bmw | K35: 12577 | L35: 850000 | M35: 30049 | N35: 31875 | O35: 31875 | P35: 31025 | Q35: =Jan[[#This Row],[تامين العميل فى الريكوست]]/Jan[[#This Row],[مبلغ التأمين]] -> 0.0365 | S35: محصل | T35: تقسيط | U35: 19029.0525 | V35: غير مسددة | W35: 0.45 | X35: 629 | AA35: غير محصل | AB35: =MONTH(Jan[[#This Row],[شهر الاصدار]]) -> 1
A36: 113 | B36: 2020-01-01 | C36: اصدار | D36: تجديدات | E36: سيارات | F36: C | G36: POLICY 33 | H36: CUST 33 | I36: BMW | J36: Bmw | K36: 12578 | L36: 810000 | M36: 28633 | N36: 30376 | O36: 30376 | P36: 28350 | Q36: =Jan[[#This Row],[تامين العميل فى الريكوست]]/Jan[[#This Row],[مبلغ التأمين]] -> 0.035 | S36: محصل | T36: Cash | U36: 18135.3925 | V36: مسددة | W36: 0.45 | X36: 630 | AA36: محصلة | AB36: =MONTH(Jan[[#This Row],[شهر الاصدار]]) -> 1
A37: 114 | B37: 2020-01-01 | C37: اصدار | D37: تجديدات | E37: سيارات | F37: C | G37: POLICY 34 | H37: CUST 34 | I37: BMW | J37: Bmw | K37: 12579 | L37: 1350000 | M37: 47750 | N37: 50625 | O37: 50625 | P37: 40500 | Q37: =Jan[[#This Row],[تامين العميل فى الريكوست]]/Jan[[#This Row],[مبلغ التأمين]] -> 0.03 | S37: محصل | T37: visa | U37: 30211.875 | V37: غير مسددة | W37: 0.45 | X37: 631 | AA37: واجبة التحصيل | AB37: =MONTH(Jan[[#This Row],[شهر الاصدار]]) -> 1
A38: 115 | B38: 2020-01-01 | C38: اصدار | D38: تجديدات | E38: سيارات | F38: C | G38: POLICY 35 | H38: CUST 35 | I38: BMW | J38: Bmw | K38: 12580 | L38: 540000 | M38: 19072 | N38: 20250 | O38: 20250 | P38: 20250 | Q38: =Jan[[#This Row],[تامين العميل فى الريكوست]]/Jan[[#This Row],[مبلغ التأمين]] -> 0.0375 | S38: محصل | T38: Bank Trf | U38: 12096.72 | V38: مسددة | W38: 0.45 | X38: 632 | AA38: مؤجله | AB38: =MONTH(Jan[[#This Row],[شهر الاصدار]]) -> 1
A39: 117 | B39: 2020-01-01 | C39: اصدار | D39: تجديدات | E39: سيارات | F39: C | G39: POLICY 36 | H39: CUST 36 | I39: NON BMW | J39: Mini cooper | K39: 12581 | L39: 490000 | M39: 17304 | N39: 18378 | O39: 18378 | P39: 14996 | Q39: =Jan[[#This Row],[تامين العميل فى الريكوست]]/Jan[[#This Row],[مبلغ التأمين]] -> 0.03060408163 | S39: محصل | T39: تقسيط | U39: 10980.54 | V39: غير مسددة | W39: 0.45 | X39: 633 | AA39: غير محصل | AB39: =MONTH(Jan[[#This Row],[شهر الاصدار]]) -> 1
A40: 118 | B40: 2020-01-01 | C40: اصدار | D40: تجديدات | E40: سيارات | F40: C | G40: POLICY 37 | H40: CUST 37 | I40: BMW | J40: Bmw | K40: 12582 | L40: 540000 | M40: 19071 | N40: 20250 | O40: 20250 | P40: 18900 | Q40: =Jan[[#This Row],[تامين العميل فى الريكوست]]/Jan[[#This Row],[مبلغ التأمين]] -> 0.035 | S40: محصل | T40: Cash | U40: 12097.1475 | V40: مسددة | W40: 0.45 | X40: 634 | AA40: محصلة | AB40: =MONTH(Jan[[#This Row],[شهر الاصدار]]) -> 1
A41: 125 | B41: 2020-01-01 | C41: اصدار | D41: تجديدات | E41: سيارات | F41: C | G41: POLICY 38 | H41: CUST 38 | I41: BMW | J41: Bmw | K41: 12583 | L41: 685000 | M41: 24207 | N41: 25688 | O41: 25688 | P41: 25688 | Q41: =Jan[[#This Row],[تامين العميل فى الريكوست]]/Jan[[#This Row],[مبلغ التأمين]] -> 0.03750072993 | S41: محصل | T41: visa | U41: 15339.5075 | V41: غير مسددة | W41: 0.45 | X41: 635 | AA41: واجبة التحصيل | AB41: =MONTH(Jan[[#This Row],[شهر الاصدار]]) -> 1
A42: 127 | B42: 2020-01-01 | C42: اصدار | D42: تجديدات | E42: سيارات | F42: C | G42: POLICY 39 | H42: CUST 39 | I42: BMW | J42: Bmw | K42: 12584 | L42: 440000 | M42: 15531 | N42: 16501 | O42: 22000 | P42: 22000 | Q42: =Jan[[#This Row],[تامين العميل فى الريكوست]]/Jan[[#This Row],[مبلغ التأمين]] -> 0.05 | S42: محصل | T42: Bank Trf | U42: 9861.4975 | V42: مسددة | W42: 0.45 | X42: 636 | AA42: مؤجله | AB42: =MONTH(Jan[[#This Row],[شهر الاصدار]]) -> 1
A43: 129 | B43: 2020-01-01 | C43: اصدار | D43: تجديدات | E43: سيارات | F43: C | G43: POLICY 40 | H43: CUST 40 | I43: Bmw | J43: Bmw | K43: 12585 | L43: 265000 | M43: 9334 | N43: 9938 | O43: 9938 | P43: 11607 | Q43: =Jan[[#This Row],[تامين العميل فى الريكوست]]/Jan[[#This Row],[مبلغ التأمين]] -> 0.0438 | S43: محصل | T43: تقسيط | U43: 5947.715 | V43: غير مسددة | W43: 0.45 | X43: 637 | AA43: غير محصل | AB43: =MONTH(Jan[[#This Row],[شهر الاصدار]]) -> 1
A44: 132 | B44: 2020-01-01 | C44: اصدار | D44: تجديدات | E44: سيارات | F44: C | G44: POLICY 41 | H44: CUST 41 | I44: BMW | J44: Bmw | K44: 12586 | L44: 720000 | M44: 25446 | N44: 27001 | O44: 27001 | P44: 25200 | Q44: =Jan[[#This Row],[تامين العميل فى الريكوست]]/Jan[[#This Row],[مبلغ التأمين]] -> 0.035 | S44: محصل | T44: Cash | U44: 16122.835 | V44: مسددة | W44: 0.45 | X44: 638 | AA44: محصلة | AB44: =MONTH(Jan[[#This Row],[شهر الاصدار]]) -> 1
A45: 135 | B45: 2020-01-01 | C45: اصدار | D45: تجديدات | E45: سيارات | F45: C | G45: POLICY 42 | H45: CUST 42 | I45: NON BMW | J45: Mini cooper | K45: 12587 | L45: 324000 | M45: 11423 | N45: 12150 | O45: 12150 | P45: 11340 | Q45: =Jan[[#This Row],[تامين العميل فى الريكوست]]/Jan[[#This Row],[مبلغ التأمين]] -> 0.035 | S45: محصل | T45: visa | U45: 7266.6675 | V45: غير مسددة | W45: 0.45 | X45: 639 | AA45: واجبة التحصيل | AB45: =MONTH(Jan[[#This Row],[شهر الاصدار]]) -> 1
A46: 140 | B46: 2020-01-01 | C46: اصدار | D46: تجديدات | E46: سيارات | F46: F | G46: POLICY 43 | H46: CUST 43 | I46: BMW | J46: Bmw | K46: 12588 | L46: 1500000 | M46: 60147.31 | N46: 63750 | O46: 63750 | P46: 48750 | Q46: =Jan[[#This Row],[تامين العميل فى الريكوست]]/Jan[[#This Row],[مبلغ التأمين]] -> 0.0325 | S46: محصل | T46: Bank Trf | U46: 38037.02498 | V46: مسددة | W46: 0.45 | X46: 640 | AA46: مؤجله | AB46: =MONTH(Jan[[#This Row],[شهر الاصدار]]) -> 1
A47: 141 | B47: 2020-01-01 | C47: اصدار | D47: تجديدات | E47: سيارات | F47: F | G47: POLICY 44 | H47: CUST 44 | I47: BMW | J47: Bmw | K47: 12589 | L47: 540000 | M47: 21620.4 | N47: 22950 | O47: 22950 | P47: 20250 | Q47: =Jan[[#This Row],[تامين العميل فى الريكوست]]/Jan[[#This Row],[مبلغ التأمين]] -> 0.0375 | S47: محصل | T47: تقسيط | U47: 13707.279 | V47: غير مسددة | W47: 0.45 | X47: 641 | AA47: غير محصل | AB47: =MONTH(Jan[[#This Row],[شهر الاصدار]]) -> 1
A48: 142 | B48: 2020-01-01 | C48: اصدار | D48: تجديدات | E48: سيارات | F48: F | G48: POLICY 45 | H48: CUST 45 | I48: BMW | J48: Bmw | K48: 12590 | L48: 540000 | M48: 21620.4 | N48: 22950 | O48: 22950 | P48: 18900 | Q48: =Jan[[#This Row],[تامين العميل فى الريكوست]]/Jan[[#This Row],[مبلغ التأمين]] -> 0.035 | S48: غير محصل | T48: Cash | U48: 13707.279 | V48: مسددة | W48: 0.45 | X48: 642 | AA48: محصلة | AB48: =MONTH(Jan[[#This Row],[شهر الاصدار]]) -> 1
A49: 143 | B49: 2020-01-01 | C49: اصدار | D49: تجديدات | E49: سيارات | F49: F | G49: POLICY 46 | H49: CUST 46 | I49: BMW | J49: Bmw | K49: 12591 | L49: 615000 | M49: 24630.78 | N49: 26138 | O49: 26138 | P49: 21525 | Q49: =Jan[[#This Row],[تامين العميل فى الريكوست]]/Jan[[#This Row],[مبلغ التأمين]] -> 0.035 | S49: غير محصل | T49: visa | U49: 15608.34155 | V49: غير مسددة | W49: 0.45 | X49: 643 | AA49: واجبة التحصيل | AB49: =MONTH(Jan[[#This Row],[شهر الاصدار]]) -> 1
A50: 144 | B50: 2020-01-01 | C50: اصدار | D50: تجديدات | E50: سيارات | F50: F | G50: POLICY 47 | H50: CUST 47 | I50: BMW | J50: Bmw | K50: 12592 | L50: 1500000 | M50: 60147.31 | N50: 63750 | O50: 63750 | P50: 52500 | Q50: =Jan[[#This Row],[تامين العميل فى الريكوست]]/Jan[[#This Row],[مبلغ التأمين]] -> 0.035 | S50: غير محصل | T50: Bank Trf | U50: 38037.02498 | V50: مسددة | W50: 0.45 | X50: 644 | AA50: مؤجله | AB50: =MONTH(Jan[[#This Row],[شهر الاصدار]]) -> 1
A51: 147 | B51: 2020-01-01 | C51: اصدار | D51: تجديدات | E51: سيارات | F51: F | G51: POLICY 48 | H51: CUST 48 | I51: BMW | J51: Bmw | K51: 12593 | L51: 360000 | M51: 14396.6 | N51: 15300 | O51: 15300 | P51: 12600 | Q51: =Jan[[#This Row],[تامين العميل فى الريكوست]]/Jan[[#This Row],[مبلغ التأمين]] -> 0.035 | S51: غير محصل | T51: تقسيط | U51: 9145.4535 | V51: غير مسددة | W51: 0.45 | X51: 645 | AA51: غير محصل | AB51: =MONTH(Jan[[#This Row],[شهر الاصدار]]) -> 1
A52: 148 | B52: 2020-01-01 | C52: اصدار | D52: تجديدات | E52: سيارات | F52: F | G52: POLICY 49 | H52: CUST 49 | I52: BMW | J52: Bmw | K52: 12594 | L52: 495000 | M52: 19814.92 | N52: 21038 | O52: 21038 | P52: 19305 | Q52: =Jan[[#This Row],[تامين العميل فى الريكوست]]/Jan[[#This Row],[مبلغ التأمين]] -> 0.039 | S52: غير محصل | T52: Cash | U52: 12567.1217 | V52: مسددة | W52: 0.45 | X52: 646 | AA52: محصلة | AB52: =MONTH(Jan[[#This Row],[شهر الاصدار]]) -> 1
A53: 149 | B53: 2020-01-01 | C53: اصدار | D53: تجديدات | E53: سيارات | F53: F | G53: POLICY 50 | H53: CUST 50 | I53: BMW | J53: Bmw | K53: 12595 | L53: 730000 | M53: 29245.51 | N53: 31025 | O53: 31025 | P53: 27375 | Q53: =Jan[[#This Row],[تامين العميل فى الريكوست]]/Jan[[#This Row],[مبلغ التأمين]] -> 0.0375 | S53: غير محصل | T53: visa | U53: 18522.54448 | V53: غير مسددة | W53: 0.45 | X53: 647 | AA53: واجبة التحصيل | AB53: =MONTH(Jan[[#This Row],[شهر الاصدار]]) -> 1
A54: 150 | B54: 2020-01-01 | C54: اصدار | D54: تجديدات | E54: سيارات | F54: F | G54: POLICY 51 | H54: CUST 51 | I54: BMW | J54: Bmw | K54: 12596 | L54: 440000 | M54: 17607.18 | N54: 18700 | O54: 18700 | P54: 14300 | Q54: =Jan[[#This Row],[تامين العميل فى الريكوست]]/Jan[[#This Row],[مبلغ التأمين]] -> 0.0325 | S54: غير محصل | T54: Bank Trf | U54: 11172.93055 | V54: مسددة | W54: 0.45 | X54: 648 | AA54: مؤجله | AB54: =MONTH(Jan[[#This Row],[شهر الاصدار]]) -> 1
A55: 151 | B55: 2020-01-01 | C55: اصدار | D55: تجديدات | E55: سيارات | F55: F | G55: POLICY 52 | H55: CUST 52 | I55: NON BMW | J55: OPEEL | K55: 12597 | L55: 296100 | M55: 8337.11 | N55: 8883 | O55: 9623.25 | P55: 6662 | Q55: =Jan[[#This Row],[تامين العميل فى الريكوست]]/Jan[[#This Row],[مبلغ التأمين]] -> 0.02249915569 | S55: غير محصل | T55: تقسيط | U55: 6506.92365 | V55: غير مسددة | W55: 0.3 | X55: 649 | AA55: غير محصل | AB55: =MONTH(Jan[[#This Row],[شهر الاصدار]]) -> 1
A56: 152 | B56: 2020-01-01 | C56: اصدار | D56: تجديدات | E56: سيارات | F56: F | G56: POLICY 53 | H56: CUST 53 | I56: BMW | J56: Bmw | K56: 12598 | L56: 378000 | M56: 15118.98 | N56: 16065 | O56: 16065 | P56: 14175 | Q56: =Jan[[#This Row],[تامين العميل فى الريكوست]]/Jan[[#This Row],[مبلغ التأمين]] -> 0.0375 | S56: غير محصل | T56: Cash | U56: 9601.63605 | V56: مسددة | W56: 0.45 | X56: 650 | AA56: محصلة | AB56: =MONTH(Jan[[#This Row],[شهر الاصدار]]) -> 1
A57: 154 | B57: 2020-01-01 | C57: اصدار | D57: تجديدات | E57: سيارات | F57: F | G57: POLICY 54 | H57: CUST 54 | I57: BMW | J57: Bmw | K57: 12599 | L57: 540000 | M57: 21620.4 | N57: 22950 | O57: 22950 | P57: 20250 | Q57: =Jan[[#This Row],[تامين العميل فى الريكوست]]/Jan[[#This Row],[مبلغ التأمين]] -> 0.0375 | S57: غير محصل | T57: visa | U57: 13707.279 | V57: غير مسددة | W57: 0.45 | X57: 651 | AA57: واجبة التحصيل | AB57: =MONTH(Jan[[#This Row],[شهر الاصدار]]) -> 1
A58: 155 | B58: 2020-01-01 | C58: اصدار | D58: تجديدات | E58: سيارات | F58: F | G58: POLICY 55 | H58: CUST 55 | I58: BMW | J58: Bmw | K58: 12600 | L58: 540000 | M58: 21620.4 | N58: 22950 | O58: 22950 | P58: 19940 | Q58: =Jan[[#This Row],[تامين العميل فى الريكوست]]/Jan[[#This Row],[مبلغ التأمين]] -> 0.03692592593 | S58: غير محصل | T58: Bank Trf | U58: 13707.279 | V58: مسددة | W58: 0.45 | X58: 652 | AA58: مؤجله | AB58: =MONTH(Jan[[#This Row],[شهر الاصدار]]) -> 1
A59: 156 | B59: 2020-01-01 | C59: اصدار | D59: تجديدات | E59: سيارات | F59: F | G59: POLICY 56 | H59: CUST 56 | I59: BMW | J59: Bmw | K59: 12601 | L59: 900000 | M59: 36067.99 | N59: 38250 | O59: 38250 | P59: 33750 | Q59: =Jan[[#This Row],[تامين العميل فى الريكوست]]/Jan[[#This Row],[مبلغ التأمين]] -> 0.0375 | S59: غير محصل | T59: تقسيط | U59: 22830.93427 | V59: غير مسددة | W59: 0.45 | X59: 653 | AA59: غير محصل | AB59: =MONTH(Jan[[#This Row],[شهر الاصدار]]) -> 1
A60: 157 | B60: 2020-01-01 | C60: اصدار | D60: تجديدات | E60: سيارات | F60: F | G60: POLICY 57 | H60: CUST 57 | I60: BMW | J60: Bmw | K60: 12602 | L60: 684000 | M60: 27399.43 | N60: 29070 | O60: 29070 | P60: 23940 | Q60: =Jan[[#This Row],[تامين العميل فى الريكوست]]/Jan[[#This Row],[مبلغ التأمين]] -> 0.035 | S60: غير محصل | T60: Cash | U60: 17356.74367 | V60: مسددة | W60: 0.45 | X60: 654 | AA60: محصلة | AB60: =MONTH(Jan[[#This Row],[شهر الاصدار]]) -> 1
A61: 158 | B61: 2020-01-01 | C61: اصدار | D61: تجديدات | E61: سيارات | F61: F | G61: POLICY 58 | H61: CUST 58 | I61: BMW | J61: Bmw | K61: 12603 | L61: 1500000 | M61: 60147.31 | N61: 63750 | O61: 63750 | P61: 52500 | Q61: =Jan[[#This Row],[تامين العميل فى الريكوست]]/Jan[[#This Row],[مبلغ التأمين]] -> 0.035 | S61: غير محصل | T61: visa | U61: 38037.02498 | V61: غير مسددة | W61: 0.45 | X61: 655 | AA61: واجبة التحصيل | AB61: =MONTH(Jan[[#This Row],[شهر الاصدار]]) -> 1
A62: 159 | B62: 2020-01-01 | C62: اصدار | D62: تجديدات | E62: سيارات | F62: F | G62: POLICY 59 | H62: CUST 59 | I62: BMW | J62: Bmw | K62: 12604 | L62: 504000 | M62: 20175.64 | N62: 21420 | O62: 21420 | P62: 20009 | Q62: =Jan[[#This Row],[تامين العميل فى الريكوست]]/Jan[[#This Row],[مبلغ التأمين]] -> 0.03970039683 | S62: غير محصل | T62: Bank Trf | U62: 12794.9139 | V62: مسددة | W62: 0.45 | X62: 656 | AA62: مؤجله | AB62: =MONTH(Jan[[#This Row],[شهر الاصدار]]) -> 1
A63: 160 | B63: 2020-01-01 | C63: اصدار | D63: تجديدات | E63: سيارات | F63: F | G63: POLICY 60 | H63: CUST 60 | I63: BMW | J63: Bmw | K63: 12605 | L63: 620000 | M63: 24830.97 | N63: 26350 | O63: 26350 | P63: 21700 | Q63: =Jan[[#This Row],[تامين العميل فى الريكوست]]/Jan[[#This Row],[مبلغ التأمين]] -> 0.035 | S63: غير محصل | T63: تقسيط | U63: 15734.76032 | V63: غير مسددة | W63: 0.45 | X63: 657 | AA63: غير محصل | AB63: =MONTH(Jan[[#This Row],[شهر الاصدار]]) -> 1
A64: 162 | B64: 2020-01-01 | C64: اصدار | D64: تجديدات | E64: سيارات | F64: F | G64: POLICY 61 | H64: CUST 61 | I64: BMW | J64: Bmw | K64: 12606 | L64: 810000 | M64: 32456.09 | N64: 34425 | O64: 34425 | P64: 28350 | Q64: =Jan[[#This Row],[تامين العميل فى الريكوست]]/Jan[[#This Row],[مبلغ التأمين]] -> 0.035 | S64: غير محصل | T64: Cash | U64: 20550.02153 | V64: مسددة | W64: 0.45 | X64: 658 | AA64: محصلة | AB64: =MONTH(Jan[[#This Row],[شهر الاصدار]]) -> 1
A65: 163 | B65: 2020-01-01 | C65: اصدار | D65: تجديدات | E65: سيارات | F65: F | G65: POLICY 62 | H65: CUST 62 | I65: BMW | J65: Bmw | K65: 12607 | L65: 684000 | M65: 27399.43 | N65: 29070 | O65: 29070 | P65: 23940 | Q65: =Jan[[#This Row],[تامين العميل فى الريكوست]]/Jan[[#This Row],[مبلغ التأمين]] -> 0.035 | S65: غير محصل | T65: visa | U65: 17356.74367 | V65: غير مسددة | W65: 0.45 | X65: 659 | AA65: واجبة التحصيل | AB65: =MONTH(Jan[[#This Row],[شهر الاصدار]]) -> 1
A66: 164 | B66: 2020-01-01 | C66: اصدار | D66: تجديدات | E66: سيارات | F66: F | G66: POLICY 63 | H66: CUST 63 | I66: BMW | J66: Bmw | K66: 12608 | L66: 620000 | M66: 24830.97 | N66: 26350 | O66: 26350 | P66: 21700 | Q66: =Jan[[#This Row],[تامين العميل فى الريكوست]]/Jan[[#This Row],[مبلغ التأمين]] -> 0.035 | S66: غير محصل | T66: Bank Trf | U66: 15734.76032 | V66: مسددة | W66: 0.45 | X66: 660 | AA66: مؤجله | AB66: =MONTH(Jan[[#This Row],[شهر الاصدار]]) -> 1
A67: 165 | B67: 2020-01-01 | C67: اصدار | D67: تجديدات | E67: سيارات | F67: F | G67: POLICY 64 | H67: CUST 64 | I67: BMW | J67: Bmw | K67: 12609 | L67: 990000 | M67: 39679.89 | N67: 42075 | O67: 42075 | P67: 34650 | Q67: =Jan[[#This Row],[تامين العميل فى الريكوست]]/Jan[[#This Row],[مبلغ التأمين]] -> 0.035 | S67: غير محصل | T67: تقسيط | U67: 25111.84703 | V67: غير مسددة | W67: 0.45 | X67: 661 | AA67: غير محصل | AB67: =MONTH(Jan[[#This Row],[شهر الاصدار]]) -> 1
A68: 166 | B68: 2020-01-01 | C68: اصدار | D68: تجديدات | E68: سيارات | F68: F | G68: POLICY 65 | H68: CUST 65 | I68: BMW | J68: Bmw | K68: 12610 | L68: 685000 | M68: 27440.04 | N68: 29113 | O68: 29113 | P68: 22263 | Q68: =Jan[[#This Row],[تامين العميل فى الريكوست]]/Jan[[#This Row],[مبلغ التأمين]] -> 0.03250072993 | S68: محصل | T68: Cash | U68: 17382.3829 | V68: مسددة | W68: 0.45 | X68: 662 | AA68: محصلة | AB68: =MONTH(Jan[[#This Row],[شهر الاصدار]]) -> 1
A69: 168 | B69: 2020-01-01 | C69: اصدار | D69: تجديدات | E69: سيارات | F69: C | G69: POLICY 66 | H69: CUST 66 | I69: BMW | J69: Bmw | K69: 12611 | L69: 560000 | M69: 19780 | N69: 21000 | O69: 21000 | P69: 21000 | Q69: =Jan[[#This Row],[تامين العميل فى الريكوست]]/Jan[[#This Row],[مبلغ التأمين]] -> 0.0375 | S69: غير محصل | T69: visa | U69: 12544.05 | V69: غير مسددة | W69: 0.45 | X69: 663 | AA69: واجبة التحصيل | AB69: =MONTH(Jan[[#This Row],[شهر الاصدار]]) -> 1
A70: 171 | B70: 2020-01-01 | C70: اصدار | D70: تجديدات | E70: سيارات | F70: C | G70: POLICY 67 | H70: CUST 67 | I70: BMW | J70: Bmw | K70: 12612 | L70: 400500 | M70: 14133 | N70: 15020 | O70: 15020 | P70: 17542 | Q70: =Jan[[#This Row],[تامين العميل فى الريكوست]]/Jan[[#This Row],[مبلغ التأمين]] -> 0.04380024969 | S70: غير محصل | T70: Bank Trf | U70: 8978.1425 | V70: مسددة | W70: 0.45 | X70: 664 | AA70: مؤجله | AB70: =MONTH(Jan[[#This Row],[شهر الاصدار]]) -> 1
A71: 172 | B71: 2020-01-01 | C71: اصدار | D71: تجديدات | E71: سيارات | F71: C | G71: POLICY 68 | H71: CUST 68 | I71: BMW | J71: Bmw | K71: 12613 | L71: 810000 | M71: 28633 | N71: 30376 | O71: 30376 | P71: 26973 | Q71: =Jan[[#This Row],[تامين العميل فى الريكوست]]/Jan[[#This Row],[مبلغ التأمين]] -> 0.0333 | S71: غير محصل | T71: تقسيط | U71: 18135.3925 | V71: غير مسددة | W71: 0.45 | X71: 665 | AA71: غير محصل | AB71: =MONTH(Jan[[#This Row],[شهر الاصدار]]) -> 1
A72: 174 | B72: 2020-01-01 | C72: اصدار | D72: تجديدات | E72: سيارات | F72: C | G72: POLICY 69 | H72: CUST 69 | I72: BMW | J72: Bmw | K72: 12614 | L72: 640000 | M72: 22615 | N72: 24002 | O72: 24002 | P72: 22400 | Q72: =Jan[[#This Row],[تامين العميل فى الريكوست]]/Jan[[#This Row],[مبلغ التأمين]] -> 0.035 | S72: محصل | T72: Cash | U72: 14334.0875 | V72: مسددة | W72: 0.45 | X72: 666 | AA72: محصلة | AB72: =MONTH(Jan[[#This Row],[شهر الاصدار]]) -> 1
A73: 177 | B73: 2020-01-01 | C73: اصدار | D73: تجديدات | E73: سيارات | F73: F | G73: POLICY 70 | H73: CUST 70 | I73: NON BMW | J73: HYUNDAI | K73: 12615 | L73: 495000 | M73: 13971.67 | N73: 14850 | O73: 16087.5 | P73: 12375 | Q73: =Jan[[#This Row],[تامين العميل فى الريكوست]]/Jan[[#This Row],[مبلغ التأمين]] -> 0.025 | S73: محصل | T73: visa | U73: 10868.07405 | V73: غير مسددة | W73: 0.3 | X73: 667 | AA73: واجبة التحصيل | AB73: =MONTH(Jan[[#This Row],[شهر الاصدار]]) -> 1
A74: 178 | B74: 2020-01-01 | C74: اصدار | D74: تجديدات | E74: سيارات | F74: F | G74: POLICY 71 | H74: CUST 71 | I74: NON BMW | J74: Mini cooper | K74: 12616 | L74: 380700 | M74: 15227.57 | N74: 16180 | O74: 16180 | P74: 15228 | Q74: =Jan[[#This Row],[تامين العميل فى الريكوست]]/Jan[[#This Row],[مبلغ التأمين]] -> 0.04 | S74: محصل | T74: Bank Trf | U74: 9670.213825 | V74: مسددة | W74: 0.45 | X74: 668 | AA74: مؤجله | AB74: =MONTH(Jan[[#This Row],[شهر الاصدار]]) -> 1
A75: 179 | B75: 2020-01-01 | C75: اصدار | D75: تجديدات | E75: سيارات | F75: F | G75: POLICY 72 | H75: CUST 72 | I75: BMW | J75: Bmw | K75: 12617 | L75: 280000 | M75: 11186.02 | N75: 11900 | O75: 11900 | P75: 11200 | Q75: =Jan[[#This Row],[تامين العميل فى الريكوست]]/Jan[[#This Row],[مبلغ التأمين]] -> 0.04 | S75: محصل | T75: تقسيط | U75: 7117.97645 | V75: غير مسددة | W75: 0.45 | X75: 669 | AA75: غير محصل | AB75: =MONTH(Jan[[#This Row],[شهر الاصدار]]) -> 1
A76: 180 | B76: 2020-01-01 | C76: اصدار | D76: تجديدات | E76: سيارات | F76: F | G76: POLICY 73 | H76: CUST 73 | I76: BMW | J76: Bmw | K76: 12618 | L76: 450000 | M76: 18008.5 | N76: 19125 | O76: 19125 | P76: 18000 | Q76: =Jan[[#This Row],[تامين العميل فى الريكوست]]/Jan[[#This Row],[مبلغ التأمين]] -> 0.04 | S76: محصل | T76: Cash | U76: 11426.36625 | V76: مسددة | W76: 0.45 | X76: 670 | AA76: محصلة | AB76: =MONTH(Jan[[#This Row],[شهر الاصدار]]) -> 1
A77: 185 | B77: 2020-01-01 | C77: اصدار | D77: تجديدات | E77: سيارات | F77: F | G77: POLICY 74 | H77: CUST 74 | I77: BMW | J77: Bmw | K77: 12619 | L77: 1170000 | M77: 46903.68 | N77: 49725 | O77: 49725 | P77: 40950 | Q77: =Jan[[#This Row],[تامين العميل فى الريكوست]]/Jan[[#This Row],[مبلغ التأمين]] -> 0.035 | S77: محصل | T77: visa | U77: 29673.6768 | V77: غير مسددة | W77: 0.45 | X77: 671 | AA77: واجبة التحصيل | AB77: =MONTH(Jan[[#This Row],[شهر الاصدار]]) -> 1
A78: 187 | B78: 2020-01-01 | C78: اصدار | D78: تجديدات | E78: سيارات | F78: F | G78: POLICY 75 | H78: CUST 75 | I78: BMW | J78: Bmw | K78: 12620 | L78: 540000 | M78: 21620.4 | N78: 22950 | O78: 22950 | P78: 20250 | Q78: =Jan[[#This Row],[تامين العميل فى الريكوست]]/Jan[[#This Row],[مبلغ التأمين]] -> 0.0375 | S78: محصل | T78: Bank Trf | U78: 13707.279 | V78: مسددة | W78: 0.45 | X78: 672 | AA78: مؤجله | AB78: =MONTH(Jan[[#This Row],[شهر الاصدار]]) -> 1
A79: 188 | B79: 2020-01-01 | C79: اصدار | D79: تجديدات | E79: سيارات | F79: F | G79: POLICY 76 | H79: CUST 76 | I79: BMW | J79: BMW | K79: 12621 | L79: 540000 | M79: 21620.4 | N79: 22950 | O79: 22950 | P79: 18900 | Q79: =Jan[[#This Row],[تامين العميل فى الريكوست]]/Jan[[#This Row],[مبلغ التأمين]] -> 0.035 | S79: محصل | T79: تقسيط | U79: 13707.279 | V79: غير مسددة | W79: 0.45 | X79: 673 | AA79: غير محصل | AB79: =MONTH(Jan[[#This Row],[شهر الاصدار]]) -> 1
A80: 189 | B80: 2020-01-01 | C80: اصدار | D80: تجديدات | E80: سيارات | F80: F | G80: POLICY 77 | H80: CUST 77 | I80: BMW | J80: Bmw | K80: 12622 | L80: 1650000 | M80: 66167.14 | N80: 70125 | O80: 70125 | P80: 57750 | Q80: =Jan[[#This Row],[تامين العميل فى الريكوست]]/Jan[[#This Row],[مبلغ التأمين]] -> 0.035 | S80: محصل | T80: Cash | U80: 41838.54765 | V80: مسددة | W80: 0.45 | X80: 674 | AA80: محصلة | AB80: =MONTH(Jan[[#This Row],[شهر الاصدار]]) -> 1
A81: 199 | B81: 2020-01-01 | C81: اصدار | D81: تجديدات | E81: سيارات | F81: B | G81: POLICY 78 | H81: CUST 78 | I81: BMW | J81: Bmw | K81: 12623 | L81: 750000 | M81: 30047.35 | N81: 31875 | O81: 31875 | P81: 30000 | Q81: =Jan[[#This Row],[تامين العميل فى الريكوست]]/Jan[[#This Row],[مبلغ التأمين]] -> 0.04 | S81: محصل | T81: visa | U81: 21884.25612 | V81: غير مسددة | W81: 0.35 | X81: 675 | AA81: واجبة التحصيل | AB81: =MONTH(Jan[[#This Row],[شهر الاصدار]]) -> 1
A82: 200 | B82: 2020-01-01 | C82: اصدار | D82: تجديدات | E82: سيارات | F82: B | G82: POLICY 79 | H82: CUST 79 | I82: BMW | J82: Bmw | K82: 12624 | L82: 990000 | M82: 39706.44 | N82: 42075 | O82: 42075 | P82: 34650 | Q82: =Jan[[#This Row],[تامين العميل فى الريكوست]]/Jan[[#This Row],[مبلغ التأمين]] -> 0.035 | S82: محصل | T82: Bank Trf | U82: 28872.6087 | V82: مسددة | W82: 0.35 | X82: 676 | AA82: مؤجله | AB82: =MONTH(Jan[[#This Row],[شهر الاصدار]]) -> 1
A83: 203 | B83: 2020-01-01 | C83: اصدار | D83: تجديدات | E83: سيارات | F83: B | G83: POLICY 80 | H83: CUST 80 | I83: BMW | J83: Bmw | K83: 12625 | L83: 560000 | M83: 22400.2 | N83: 23800 | O83: 23800 | P83: 23800 | Q83: =Jan[[#This Row],[تامين العميل فى الريكوست]]/Jan[[#This Row],[مبلغ التأمين]] -> 0.0425 | S83: محصل | T83: تقسيط | U83: 16351.9335 | V83: غير مسددة | W83: 0.35 | X83: 677 | AA83: غير محصل | AB83: =MONTH(Jan[[#This Row],[شهر الاصدار]]) -> 1
A84: 209 | B84: 2020-01-01 | C84: اصدار | D84: تجديدات | E84: سيارات | F84: B | G84: POLICY 81 | H84: CUST 81 | I84: BMW | J84: Bmw | K84: 12626 | L84: 560000 | M84: 22397.2 | N84: 23800 | O84: 23800 | P84: 22400 | Q84: =Jan[[#This Row],[تامين العميل فى الريكوست]]/Jan[[#This Row],[مبلغ التأمين]] -> 0.04 | S84: محصل | T84: Cash | U84: 16352.931 | V84: مسددة | W84: 0.35 | X84: 678 | AA84: محصلة | AB84: =MONTH(Jan[[#This Row],[شهر الاصدار]]) -> 1
A85: 210 | B85: 2020-01-01 | C85: اصدار | D85: تجديدات | E85: سيارات | F85: B | G85: POLICY 82 | H85: CUST 82 | I85: BMW | J85: Bmw | K85: 12627 | L85: 1350000 | M85: 54192 | N85: 57375 | O85: 57375 | P85: 54000 | Q85: =Jan[[#This Row],[تامين العميل فى الريكوست]]/Jan[[#This Row],[مبلغ التأمين]] -> 0.04 | S85: محصل | T85: visa | U85: 39356.16 | V85: غير مسددة | W85: 0.35 | X85: 679 | AA85: واجبة التحصيل | AB85: =MONTH(Jan[[#This Row],[شهر الاصدار]]) -> 1
A86: 216 | B86: 2020-01-01 | C86: اصدار | D86: تجديدات | E86: سيارات | F86: B | G86: POLICY 83 | H86: CUST 83 | I86: BMW | J86: Bmw | K86: 12628 | L86: 223200 | M86: 8864 | N86: 9486 | O86: 9486 | P86: 8370 | Q86: =Jan[[#This Row],[تامين العميل فى الريكوست]]/Jan[[#This Row],[مبلغ التأمين]] -> 0.0375 | S86: محصل | T86: Bank Trf | U86: 6538.72 | V86: مسددة | W86: 0.35 | X86: 680 | AA86: مؤجله | AB86: =MONTH(Jan[[#This Row],[شهر الاصدار]]) -> 1
A87: 223 | B87: 2020-01-01 | C87: اصدار | D87: تجديدات | E87: سيارات | F87: B | G87: POLICY 84 | H87: CUST 84 | I87: BMW | J87: Bmw | K87: 12629 | L87: 1170000 | M87: 46950.4 | N87: 49725 | O87: 49725 | P87: 46800 | Q87: =Jan[[#This Row],[تامين العميل فى الريكوست]]/Jan[[#This Row],[مبلغ التأمين]] -> 0.04 | S87: محصل | T87: تقسيط | U87: 34113.992 | V87: غير مسددة | W87: 0.35 | X87: 681 | AA87: غير محصل | AB87: =MONTH(Jan[[#This Row],[شهر الاصدار]]) -> 1
A88: 234 | B88: 2020-01-01 | C88: اصدار | D88: تجديدات | E88: سيارات | F88: A | G88: POLICY 85 | H88: CUST 85 | I88: BMW | J88: Bmw | K88: 12630 | L88: 610000 | M88: 21504.25 | N88: 22875 | O88: 22875 | P88: 22875 | Q88: =Jan[[#This Row],[تامين العميل فى الريكوست]]/Jan[[#This Row],[مبلغ التأمين]] -> 0.0375 | S88: محصل | T88: Cash | U88: 15724.83688 | V88: مسددة | W88: 0.35 | X88: 682 | AA88: محصلة | AB88: =MONTH(Jan[[#This Row],[شهر الاصدار]]) -> 1
A89: 236 | B89: 2020-01-01 | C89: اصدار | D89: تجديدات | E89: سيارات | F89: A | G89: POLICY 86 | H89: CUST 86 | I89: BMW | J89: Bmw | K89: 12631 | L89: 610000 | M89: 21504.25 | N89: 22875 | O89: 22875 | P89: 18300 | Q89: =Jan[[#This Row],[تامين العميل فى الريكوست]]/Jan[[#This Row],[مبلغ التأمين]] -> 0.03 | S89: محصل | T89: visa | U89: 15724.83688 | V89: غير مسددة | W89: 0.35 | X89: 683 | AA89: واجبة التحصيل | AB89: =MONTH(Jan[[#This Row],[شهر الاصدار]]) -> 1
A90: 248 | B90: 2020-01-01 | C90: اصدار | D90: تجديدات | E90: سيارات | F90: F | G90: POLICY 87 | H90: CUST 87 | I90: BMW | J90: Bmw | K90: 12632 | L90: 730000 | M90: 29245.51 | N90: 31025 | O90: 31025 | P90: 25550 | Q90: =Jan[[#This Row],[تامين العميل فى الريكوست]]/Jan[[#This Row],[مبلغ التأمين]] -> 0.035 | S90: محصل | T90: Bank Trf | U90: 18522.54448 | V90: مسددة | W90: 0.45 | X90: 684 | AA90: مؤجله | AB90: =MONTH(Jan[[#This Row],[شهر الاصدار]]) -> 1
A91: 249 | B91: 2020-01-01 | C91: اصدار | D91: تجديدات | E91: سيارات | F91: F | G91: POLICY 88 | H91: CUST 88 | I91: BMW | J91: Bmw | K91: 12633 | L91: 560000 | M91: 22423.04 | N91: 23800 | O91: 23800 | P91: 19600 | Q91: =Jan[[#This Row],[تامين العميل فى الريكوست]]/Jan[[#This Row],[مبلغ التأمين]] -> 0.035 | S91: محصل | T91: تقسيط | U91: 14214.1504 | V91: غير مسددة | W91: 0.45 | X91: 685 | AA91: غير محصل | AB91: =MONTH(Jan[[#This Row],[شهر الاصدار]]) -> 1
A92: 253 | B92: 2020-01-01 | C92: اصدار | D92: تجديدات | E92: سيارات | F92: F | G92: POLICY 89 | H92: CUST 89 | I92: BMW | J92: Bmw | K92: 12634 | L92: 580000 | M92: 23225.68 | N92: 24650 | O92: 24650 | P92: 20300 | Q92: =Jan[[#This Row],[تامين العميل فى الريكوست]]/Jan[[#This Row],[مبلغ التأمين]] -> 0.035 | S92: محصل | T92: Cash | U92: 14721.0218 | V92: مسددة | W92: 0.45 | X92: 686 | AA92: محصلة | AB92: =MONTH(Jan[[#This Row],[شهر الاصدار]]) -> 1
A93: 257 | B93: 2020-01-01 | C93: اصدار | D93: تجديدات | E93: سيارات | F93: F | G93: POLICY 90 | H93: CUST 90 | I93: BMW | J93: Bmw | K93: 12635 | L93: 495000 | M93: 19814.92 | N93: 21038 | O93: 21038 | P93: 18563 | Q93: =Jan[[#This Row],[تامين العميل فى الريكوست]]/Jan[[#This Row],[مبلغ التأمين]] -> 0.0375010101 | S93: محصل | T93: visa | U93: 12567.1217 | V93: غير مسددة | W93: 0.45 | X93: 687 | AA93: واجبة التحصيل | AB93: =MONTH(Jan[[#This Row],[شهر الاصدار]]) -> 1
A94: 259 | B94: 2020-01-01 | C94: اصدار | D94: تجديدات | E94: سيارات | F94: F | G94: POLICY 91 | H94: CUST 91 | I94: BMW | J94: Bmw | K94: 12636 | L94: 405000 | M94: 16203.02 | N94: 17213 | O94: 17213 | P94: 14175 | Q94: =Jan[[#This Row],[تامين العميل فى الريكوست]]/Jan[[#This Row],[مبلغ التأمين]] -> 0.035 | S94: محصل | T94: Bank Trf | U94: 10286.20895 | V94: مسددة | W94: 0.45 | X94: 688 | AA94: مؤجله | AB94: =MONTH(Jan[[#This Row],[شهر الاصدار]]) -> 1
A95: 261 | B95: 2020-01-01 | C95: اصدار | D95: تجديدات | E95: سيارات | F95: F | G95: POLICY 92 | H95: CUST 92 | I95: BMW | J95: Bmw | K95: 12637 | L95: 504000 | M95: 20175.64 | N95: 21420 | O95: 21420 | P95: 18900 | Q95: =Jan[[#This Row],[تامين العميل فى الريكوست]]/Jan[[#This Row],[مبلغ التأمين]] -> 0.0375 | S95: محصل | T95: تقسيط | U95: 12794.9139 | V95: غير مسددة | W95: 0.45 | X95: 689 | AA95: غير محصل | AB95: =MONTH(Jan[[#This Row],[شهر الاصدار]]) -> 1
A96: 263 | B96: 2020-01-01 | C96: اصدار | D96: تجديدات | E96: سيارات | F96: F | G96: POLICY 93 | H96: CUST 93 | I96: BMW | J96: Bmw | K96: 12638 | L96: 1500000 | M96: 60147.31 | N96: 63750 | O96: 63750 | P96: 52500 | Q96: =Jan[[#This Row],[تامين العميل فى الريكوست]]/Jan[[#This Row],[مبلغ التأمين]] -> 0.035 | S96: محصل | T96: Cash | U96: 38037.02498 | V96: مسددة | W96: 0.45 | X96: 690 | AA96: محصلة | AB96: =MONTH(Jan[[#This Row],[شهر الاصدار]]) -> 1
A97: 265 | B97: 2020-01-01 | C97: اصدار | D97: تجديدات | E97: سيارات | F97: F | G97: POLICY 94 | H97: CUST 94 | I97: BMW | J97: Bmw | K97: 12639 | L97: 1170000 | M97: 46903.68 | N97: 49725 | O97: 49725 | P97: 40950 | Q97: =Jan[[#This Row],[تامين العميل فى الريكوست]]/Jan[[#This Row],[مبلغ التأمين]] -> 0.035 | S97: محصل | T97: visa | U97: 29673.6768 | V97: غير مسددة | W97: 0.45 | X97: 691 | AA97: واجبة التحصيل | AB97: =MONTH(Jan[[#This Row],[شهر الاصدار]]) -> 1
A98: 267 | B98: 2020-01-01 | C98: اصدار | D98: تجديدات | E98: سيارات | F98: F | G98: POLICY 95 | H98: CUST 95 | I98: BMW | J98: Bmw | K98: 12640 | L98: 504000 | M98: 20175.64 | N98: 21420 | O98: 21420 | P98: 17640 | Q98: =Jan[[#This Row],[تامين العميل فى الريكوست]]/Jan[[#This Row],[مبلغ التأمين]] -> 0.035 | S98: محصل | T98: Bank Trf | U98: 12794.9139 | V98: مسددة | W98: 0.45 | X98: 692 | AA98: مؤجله | AB98: =MONTH(Jan[[#This Row],[شهر الاصدار]]) -> 1
A99: 269 | B99: 2020-01-01 | C99: اصدار | D99: تجديدات | E99: سيارات | F99: F | G99: POLICY 96 | H99: CUST 96 | I99: BMW | J99: Bmw | K99: 12641 | L99: 610000 | M99: 24429.65 | N99: 25925 | O99: 25925 | P99: 25925 | Q99: =Jan[[#This Row],[تامين العميل فى الريكوست]]/Jan[[#This Row],[مبلغ التأمين]] -> 0.0425 | S99: محصل | T99: تقسيط | U99: 15481.32462 | V99: غير مسددة | W99: 0.45 | X99: 693 | AA99: غير محصل | AB99: =MONTH(Jan[[#This Row],[شهر الاصدار]]) -> 1
A100: 272 | B100: 2020-01-01 | C100: اصدار | D100: تجديدات | E100: سيارات | F100: F | G100: POLICY 97 | H100: CUST 97 | I100: NON BMW | J100: MAZDA | K100: 12642 | L100: 234000 | M100: 6577.9 | N100: 7020 | O100: 7605 | P100: 5265 | Q100: =Jan[[#This Row],[تامين العميل فى الريكوست]]/Jan[[#This Row],[مبلغ التأمين]] -> 0.0225 | S100: محصل | T100: Cash | U100: 5145.2985 | V100: مسددة | W100: 0.3 | X100: 694 | AA100: محصلة | AB100: =MONTH(Jan[[#This Row],[شهر الاصدار]]) -> 1
A101: 274 | B101: 2020-01-01 | C101: اصدار | D101: تجديدات | E101: سيارات | F101: F | G101: POLICY 98 | H101: CUST 98 | I101: NON BMW | J101: OPEL | K101: 12643 | L101: 296100 | M101: 8337.11 | N101: 8883 | O101: 9623.25 | P101: 8143 | Q101: =Jan[[#This Row],[تامين العميل فى الريكوست]]/Jan[[#This Row],[مبلغ التأمين]] -> 0.02750084431 | S101: محصل | T101: visa | U101: 6506.92365 | V101: غير مسددة | W101: 0.3 | X101: 695 | AA101: واجبة التحصيل | AB101: =MONTH(Jan[[#This Row],[شهر الاصدار]]) -> 1
A102: 275 | B102: 2020-01-01 | C102: اصدار | D102: تجديدات | E102: سيارات | F102: F | G102: POLICY 99 | H102: CUST 99 | I102: BMW | J102: Bmw | K102: 12644 | L102: 684000 | M102: 27399.43 | N102: 29070 | O102: 29070 | P102: 25650 | Q102: =Jan[[#This Row],[تامين العميل فى الريكوست]]/Jan[[#This Row],[مبلغ التأمين]] -> 0.0375 | S102: محصل | T102: Bank Trf | U102: 17356.74367 | V102: مسددة | W102: 0.45 | X102: 696 | AA102: مؤجله | AB102: =MONTH(Jan[[#This Row],[شهر الاصدار]]) -> 1
A103: 276 | B103: 2020-01-01 | C103: اصدار | D103: تجديدات | E103: سيارات | F103: F | G103: POLICY 100 | H103: CUST 100 | I103: BMW | J103: Bmw | K103: 12645 | L103: 685000 | M103: 27440.04 | N103: 29113 | O103: 29113 | P103: 29113 | Q103: =Jan[[#This Row],[تامين العميل فى الريكوست]]/Jan[[#This Row],[مبلغ التأمين]] -> 0.04250072993 | S103: محصل | T103: تقسيط | U103: 17382.3829 | V103: غير مسددة | W103: 0.45 | X103: 697 | AA103: غير محصل | AB103: =MONTH(Jan[[#This Row],[شهر الاصدار]]) -> 1
A104: 277 | B104: 2020-01-01 | C104: اصدار | D104: تجديدات | E104: سيارات | F104: F | G104: POLICY 101 | H104: CUST 101 | I104: BMW | J104: Bmw | K104: 12646 | L104: 504000 | M104: 20175.64 | N104: 21420 | O104: 21420 | P104: 18900 | Q104: =Jan[[#This Row],[تامين العميل فى الريكوست]]/Jan[[#This Row],[مبلغ التأمين]] -> 0.0375 | S104: محصل | T104: Cash | U104: 12794.9139 | V104: مسددة | W104: 0.45 | X104: 698 | AA104: محصلة | AB104: =MONTH(Jan[[#This Row],[شهر الاصدار]]) -> 1
A105: 280 | B105: 2020-01-01 | C105: اصدار | D105: تجديدات | E105: سيارات | F105: F | G105: POLICY 102 | H105: CUST 102 | I105: BMW | J105: Bmw | K105: 12647 | L105: 540000 | M105: 21620.4 | N105: 22950 | O105: 22950 | P105: 18900 | Q105: =Jan[[#This Row],[تامين العميل فى الريكوست]]/Jan[[#This Row],[مبلغ التأمين]] -> 0.035 | S105: محصل | T105: visa | U105: 13707.279 | V105: غير مسددة | W105: 0.45 | X105: 699 | AA105: واجبة التحصيل | AB105: =MONTH(Jan[[#This Row],[شهر الاصدار]]) -> 1
A106: 282 | B106: 2020-01-01 | C106: اصدار | D106: تجديدات | E106: سيارات | F106: F | G106: POLICY 103 | H106: CUST 103 | I106: BMW | J106: Bmw | K106: 12648 | L106: 630000 | M106: 25232.29 | N106: 26775 | O106: 26775 | P106: 23625 | Q106: =Jan[[#This Row],[تامين العميل فى الريكوست]]/Jan[[#This Row],[مبلغ التأمين]] -> 0.0375 | S106: محصل | T106: Bank Trf | U106: 15988.19602 | V106: مسددة | W106: 0.45 | X106: 700 | AA106: مؤجله | AB106: =MONTH(Jan[[#This Row],[شهر الاصدار]]) -> 1
A107: 283 | B107: 2020-01-01 | C107: اصدار | D107: تجديدات | E107: سيارات | F107: F | G107: POLICY 104 | H107: CUST 104 | I107: BMW | J107: Bmw | K107: 12649 | L107: 292500 | M107: 11688.39 | N107: 12432 | O107: 12432 | P107: 12285 | Q107: =Jan[[#This Row],[تامين العميل فى الريكوست]]/Jan[[#This Row],[مبلغ التأمين]] -> 0.042 | S107: محصل | T107: تقسيط | U107: 7435.213275 | V107: غير مسددة | W107: 0.45 | X107: 701 | AA107: غير محصل | AB107: =MONTH(Jan[[#This Row],[شهر الاصدار]]) -> 1
A108: 285 | B108: 2020-01-01 | C108: اصدار | D108: تجديدات | E108: سيارات | F108: C | G108: POLICY 105 | H108: CUST 105 | I108: BMW | J108: Bmw | K108: 12650 | L108: 583200 | M108: 20600 | N108: 21870 | O108: 21870 | P108: 19250 | Q108: =Jan[[#This Row],[تامين العميل فى الريكوست]]/Jan[[#This Row],[مبلغ التأمين]] -> 0.03300754458 | S108: محصل | T108: Cash | U108: 13063.5 | V108: مسددة | W108: 0.45 | X108: 702 | AA108: محصلة | AB108: =MONTH(Jan[[#This Row],[شهر الاصدار]]) -> 1
A109: 286 | B109: 2020-01-01 | C109: اصدار | D109: تجديدات | E109: سيارات | F109: C | G109: POLICY 106 | H109: CUST 106 | I109: BMW | J109: Bmw | K109: 12651 | L109: 310000 | M109: 10930 | N109: 11628 | O109: 11628 | P109: 10850 | Q109: =Jan[[#This Row],[تامين العميل فى الريكوست]]/Jan[[#This Row],[مبلغ التأمين]] -> 0.035 | S109: محصل | T109: visa | U109: 6955.425 | V109: غير مسددة | W109: 0.45 | X109: 703 | AA109: واجبة التحصيل | AB109: =MONTH(Jan[[#This Row],[شهر الاصدار]]) -> 1
A110: 290 | B110: 2020-01-01 | C110: اصدار | D110: تجديدات | E110: سيارات | F110: C | G110: POLICY 107 | H110: CUST 107 | I110: BMW | J110: Bmw | K110: 12652 | L110: 324000 | M110: 11423 | N110: 12150 | O110: 12150 | P110: 11340 | Q110: =Jan[[#This Row],[تامين العميل فى الريكوست]]/Jan[[#This Row],[مبلغ التأمين]] -> 0.035 | S110: محصل | T110: Bank Trf | U110: 7266.6675 | V110: مسددة | W110: 0.45 | X110: 704 | AA110: مؤجله | AB110: =MONTH(Jan[[#This Row],[شهر الاصدار]]) -> 1
A111: 293 | B111: 2020-01-01 | C111: اصدار | D111: تجديدات | E111: سيارات | F111: B | G111: POLICY 108 | H111: CUST 108 | I111: BMW | J111: Bmw | K111: 12653 | L111: 610000 | M111: 24413 | N111: 25925 | O111: 25925 | P111: 24400 | Q111: =Jan[[#This Row],[تامين العميل فى الريكوست]]/Jan[[#This Row],[مبلغ التأمين]] -> 0.04 | S111: محصل | T111: تقسيط | U111: 17807.6775 | V111: غير مسددة | W111: 0.35 | X111: 705 | AA111: غير محصل | AB111: =MONTH(Jan[[#This Row],[شهر الاصدار]]) -> 1
A112: 294 | B112: 2020-01-01 | C112: اصدار | D112: تجديدات | E112: سيارات | F112: C | G112: POLICY 109 | H112: CUST 109 | I112: BMW | J112: Bmw | K112: 12654 | L112: 540000 | M112: 19072 | N112: 20250 | O112: 20250 | P112: 20250 | Q112: =Jan[[#This Row],[تامين العميل فى الريكوست]]/Jan[[#This Row],[مبلغ التأمين]] -> 0.0375 | S112: محصل | T112: Cash | U112: 12096.72 | V112: مسددة | W112: 0.45 | X112: 706 | AA112: محصلة | AB112: =MONTH(Jan[[#This Row],[شهر الاصدار]]) -> 1
A113: 296 | B113: 2020-01-01 | C113: اصدار | D113: تجديدات | E113: سيارات | F113: C | G113: POLICY 110 | H113: CUST 110 | I113: BMW | J113: Bmw | K113: 12655 | L113: 351000 | M113: 15488 | N113: 16455 | O113: 16455 | P113: 15339 | Q113: =Jan[[#This Row],[تامين العميل فى الريكوست]]/Jan[[#This Row],[مبلغ التأمين]] -> 0.0437008547 | S113: محصل | T113: visa | U113: 9833.88 | V113: غير مسددة | W113: 0.45 | X113: 707 | AA113: واجبة التحصيل | AB113: =MONTH(Jan[[#This Row],[شهر الاصدار]]) -> 1
A114: 299 | B114: 2020-01-01 | C114: اصدار | D114: تجديدات | E114: سيارات | F114: C | G114: POLICY 111 | H114: CUST 111 | I114: BMW | J114: Bmw | K114: 12656 | L114: 378000 | M114: 13335 | N114: 14175 | O114: 14175 | P114: 14000 | Q114: =Jan[[#This Row],[تامين العميل فى الريكوست]]/Jan[[#This Row],[مبلغ التأمين]] -> 0.03703703704 | S114: محصل | T114: Bank Trf | U114: 8474.2875 | V114: مسددة | W114: 0.45 | X114: 708 | AA114: مؤجله | AB114: =MONTH(Jan[[#This Row],[شهر الاصدار]]) -> 1
A115: 300 | B115: 2020-01-01 | C115: اصدار | D115: تجديدات | E115: سيارات | F115: C | G115: POLICY 112 | H115: CUST 112 | I115: BMW | J115: Bmw | K115: 12657 | L115: 540000 | M115: 19070 | N115: 20250 | O115: 20250 | P115: 18900 | Q115: =Jan[[#This Row],[تامين العميل فى الريكوست]]/Jan[[#This Row],[مبلغ التأمين]] -> 0.035 | S115: محصل | T115: تقسيط | U115: 12097.575 | V115: غير مسددة | W115: 0.45 | X115: 709 | AA115: غير محصل | AB115: =MONTH(Jan[[#This Row],[شهر الاصدار]]) -> 1
A116: 302 | B116: 2020-01-01 | C116: اصدار | D116: تجديدات | E116: سيارات | F116: F | G116: POLICY 113 | H116: CUST 113 | I116: BMW | J116: Bmw | K116: 12658 | L116: 553500 | M116: 22162.42 | N116: 23524 | O116: 23524 | P116: 19372.5 | Q116: =Jan[[#This Row],[تامين العميل فى الريكوست]]/Jan[[#This Row],[مبلغ التأمين]] -> 0.035 | S116: محصل | T116: Cash | U116: 14049.56545 | V116: مسددة | W116: 0.45 | X116: 710 | AA116: محصلة | AB116: =MONTH(Jan[[#This Row],[شهر الاصدار]]) -> 1
A117: 304 | B117: 2020-01-01 | C117: اصدار | D117: تجديدات | E117: سيارات | F117: F | G117: POLICY 114 | H117: CUST 114 | I117: NON BMW | J117: Brilliance | K117: 12659 | L117: 135000 | M117: 5367.33 | N117: 5738 | O117: 5738 | P117: 4725 | Q117: =Jan[[#This Row],[تامين العميل فى الريكوست]]/Jan[[#This Row],[مبلغ التأمين]] -> 0.035 | S117: محصل | T117: visa | U117: 3443.466425 | V117: غير مسددة | W117: 0.45 | X117: 711 | AA117: واجبة التحصيل | AB117: =MONTH(Jan[[#This Row],[شهر الاصدار]]) -> 1
A118: 305 | B118: 2020-01-01 | C118: اصدار | D118: تجديدات | E118: سيارات | F118: F | G118: POLICY 115 | H118: CUST 115 | I118: BMW | J118: Bmw | K118: 12660 | L118: 765000 | M118: 30650.61 | N118: 32513 | O118: 32513 | P118: 28688 | Q118: =Jan[[#This Row],[تامين العميل فى الريكوست]]/Jan[[#This Row],[مبلغ التأمين]] -> 0.03750065359 | S118: محصل | T118: Bank Trf | U118: 19409.86422 | V118: مسددة | W118: 0.45 | X118: 712 | AA118: مؤجله | AB118: =MONTH(Jan[[#This Row],[شهر الاصدار]]) -> 1
A119: 310 | B119: 2020-01-01 | C119: اصدار | D119: تجديدات | E119: سيارات | F119: F | G119: POLICY 116 | H119: CUST 116 | I119: BMW | J119: Bmw | K119: 12661 | L119: 700000 | M119: 28041.55 | N119: 29750 | O119: 29750 | P119: 26250 | Q119: =Jan[[#This Row],[تامين العميل فى الريكوست]]/Jan[[#This Row],[مبلغ التأمين]] -> 0.0375 | S119: محصل | T119: تقسيط | U119: 17762.23738 | V119: غير مسددة | W119: 0.45 | X119: 713 | AA119: غير محصل | AB119: =MONTH(Jan[[#This Row],[شهر الاصدار]]) -> 1
A120: 311 | B120: 2020-01-01 | C120: اصدار | D120: تجديدات | E120: سيارات | F120: F | G120: POLICY 117 | H120: CUST 117 | I120: BMW | J120: Bmw | K120: 12662 | L120: 440000 | M120: 17607.18 | N120: 18700 | O120: 18700 | P120: 17600 | Q120: =Jan[[#This Row],[تامين العميل فى الريكوست]]/Jan[[#This Row],[مبلغ التأمين]] -> 0.04 | S120: محصل | T120: Cash | U120: 11172.93055 | V120: مسددة | W120: 0.45 | X120: 714 | AA120: محصلة | AB120: =MONTH(Jan[[#This Row],[شهر الاصدار]]) -> 1
A121: 312 | B121: 2020-01-01 | C121: اصدار | D121: تجديدات | E121: سيارات | F121: F | G121: POLICY 118 | H121: CUST 118 | I121: BMW | J121: Bmw | K121: 12663 | L121: 495000 | M121: 19814.92 | N121: 21038 | O121: 21038 | P121: 19800 | Q121: =Jan[[#This Row],[تامين العميل فى الريكوست]]/Jan[[#This Row],[مبلغ التأمين]] -> 0.04 | S121: محصل | T121: visa | U121: 12567.1217 | V121: غير مسددة | W121: 0.45 | X121: 715 | AA121: واجبة التحصيل | AB121: =MONTH(Jan[[#This Row],[شهر الاصدار]]) -> 1
A122: 316 | B122: 2020-01-01 | C122: اصدار | D122: تجديدات | E122: سيارات | F122: F | G122: POLICY 119 | H122: CUST 119 | I122: BMW | J122: Bmw | K122: 12664 | L122: 500000 | M122: 20015.11 | N122: 21250 | O122: 21250 | P122: 21250 | Q122: =Jan[[#This Row],[تامين العميل فى الريكوست]]/Jan[[#This Row],[مبلغ التأمين]] -> 0.0425 | S122: محصل | T122: Bank Trf | U122: 12693.54047 | V122: مسددة | W122: 0.45 | X122: 716 | AA122: مؤجله | AB122: =MONTH(Jan[[#This Row],[شهر الاصدار]]) -> 1
A123: 317 | B123: 2020-01-01 | C123: اصدار | D123: تجديدات | E123: سيارات | F123: F | G123: POLICY 120 | H123: CUST 120 | I123: BMW | J123: Bmw | K123: 12665 | L123: 1300000 | M123: 52120.87 | N123: 55250 | O123: 55250 | P123: 45500 | Q123: =Jan[[#This Row],[تامين العميل فى الريكوست]]/Jan[[#This Row],[مبلغ التأمين]] -> 0.035 | S123: محصل | T123: تقسيط | U123: 32968.32807 | V123: غير مسددة | W123: 0.45 | X123: 717 | AA123: غير محصل | AB123: =MONTH(Jan[[#This Row],[شهر الاصدار]]) -> 1
A124: 318 | B124: 2020-01-01 | C124: اصدار | D124: تجديدات | E124: سيارات | F124: F | G124: POLICY 121 | H124: CUST 121 | I124: NON BMW | J124: Mini cooper | K124: 12666 | L124: 380700 | M124: 15227.57 | N124: 16180 | O124: 16180 | P124: 12373 | Q124: =Jan[[#This Row],[تامين العميل فى الريكوست]]/Jan[[#This Row],[مبلغ التأمين]] -> 0.03250065669 | S124: محصل | T124: Cash | U124: 9670.213825 | V124: مسددة | W124: 0.45 | X124: 718 | AA124: محصلة | AB124: =MONTH(Jan[[#This Row],[شهر الاصدار]]) -> 1
A125: 320 | B125: 2020-01-01 | C125: اصدار | D125: تجديدات | E125: سيارات | F125: F | G125: POLICY 122 | H125: CUST 122 | I125: NON BMW | J125: Mini cooper | K125: 12667 | L125: 490000 | M125: 19616.62 | N125: 20828 | O125: 20828 | P125: 18377 | Q125: =Jan[[#This Row],[تامين العميل فى الريكوست]]/Jan[[#This Row],[مبلغ التأمين]] -> 0.03750408163 | S125: محصل | T125: visa | U125: 12441.89495 | V125: غير مسددة | W125: 0.45 | X125: 719 | AA125: واجبة التحصيل | AB125: =MONTH(Jan[[#This Row],[شهر الاصدار]]) -> 1
A126: 321 | B126: 2020-01-01 | C126: اصدار | D126: تجديدات | E126: سيارات | F126: F | G126: POLICY 123 | H126: CUST 123 | I126: BMW | J126: Bmw | K126: 12668 | L126: 620000 | M126: 24830.97 | N126: 26350 | O126: 26350 | P126: 26350 | Q126: =Jan[[#This Row],[تامين العميل فى الريكوست]]/Jan[[#This Row],[مبلغ التأمين]] -> 0.0425 | S126: محصل | T126: Bank Trf | U126: 15734.76032 | V126: مسددة | W126: 0.45 | X126: 720 | AA126: مؤجله | AB126: =MONTH(Jan[[#This Row],[شهر الاصدار]]) -> 1
A127: 323 | B127: 2020-01-01 | C127: اصدار | D127: تجديدات | E127: سيارات | F127: F | G127: POLICY 124 | H127: CUST 124 | I127: BMW | J127: Bmw | K127: 12669 | L127: 378000 | M127: 15118.98 | N127: 16065 | O127: 16065 | P127: 12285 | Q127: =Jan[[#This Row],[تامين العميل فى الريكوست]]/Jan[[#This Row],[مبلغ التأمين]] -> 0.0325 | S127: محصل | T127: تقسيط | U127: 9601.63605 | V127: غير مسددة | W127: 0.45 | X127: 721 | AA127: غير محصل | AB127: =MONTH(Jan[[#This Row],[شهر الاصدار]]) -> 1
A128: 328 | B128: 2020-01-01 | C128: اصدار | D128: تجديدات | E128: سيارات | F128: F | G128: POLICY 125 | H128: CUST 125 | I128: BMW | J128: Bmw | K128: 12670 | L128: 560000 | M128: 22423.04 | N128: 23800 | O128: 23800 | P128: 21000 | Q128: =Jan[[#This Row],[تامين العميل فى الريكوست]]/Jan[[#This Row],[مبلغ التأمين]] -> 0.0375 | S128: محصل | T128: Cash | U128: 14214.1504 | V128: مسددة | W128: 0.45 | X128: 722 | AA128: محصلة | AB128: =MONTH(Jan[[#This Row],[شهر الاصدار]]) -> 1
A129: 332 | B129: 2020-01-01 | C129: اصدار | D129: تجديدات | E129: سيارات | F129: C | G129: POLICY 126 | H129: CUST 126 | I129: BMW | J129: BMW | K129: 12671 | L129: 640000 | M129: 22600 | N129: 24000 | O129: 24000 | P129: 22400 | Q129: =Jan[[#This Row],[تامين العميل فى الريكوست]]/Jan[[#This Row],[مبلغ التأمين]] -> 0.035 | S129: محصل | T129: visa | U129: 14338.5 | V129: غير مسددة | W129: 0.45 | X129: 723 | AA129: واجبة التحصيل | AB129: =MONTH(Jan[[#This Row],[شهر الاصدار]]) -> 1
A130: 336 | B130: 2020-01-01 | C130: اصدار | D130: تسويق - سيارات | E130: سيارات | F130: D | G130: POLICY 127 | H130: CUST 127 | I130: NON BMW | J130: MG | K130: 12672 | L130: 240000 | M130: 6684.43 | N130: 7200 | O130: 7200 | P130: 5400 | Q130: =Jan[[#This Row],[تامين العميل فى الريكوست]]/Jan[[#This Row],[مبلغ التأمين]] -> 0.0225 | S130: محصل | T130: Bank Trf | U130: 6247.468725 | V130: مسددة | W130: 0.15 | X130: 724 | AA130: مؤجله | AB130: =MONTH(Jan[[#This Row],[شهر الاصدار]]) -> 1
A131: 337 | B131: 2020-01-01 | C131: اصدار | D131: تسويق - سيارات | E131: سيارات | F131: F | G131: POLICY 128 | H131: CUST 128 | I131: NON BMW | J131: TOYOTA | K131: 12673 | L131: 362000 | M131: 10203.97 | N131: 10860 | O131: 10860 | P131: 8145 | Q131: =Jan[[#This Row],[تامين العميل فى الريكوست]]/Jan[[#This Row],[مبلغ التأمين]] -> 0.0225 | S131: محصل | T131: تقسيط | U131: 7951.86855 | V131: غير مسددة | W131: 0.3 | X131: 725 | AA131: غير محصل | AB131: =MONTH(Jan[[#This Row],[شهر الاصدار]]) -> 1
A132: 338 | B132: 2020-01-01 | C132: اصدار | D132: تسويق - سيارات | E132: سيارات | F132: F | G132: POLICY 129 | H132: CUST 129 | I132: NON BMW | J132: TOYOTA | K132: 12674 | L132: 362000 | M132: 10203.97 | N132: 10860 | O132: 10860 | P132: 8145 | Q132: =Jan[[#This Row],[تامين العميل فى الريكوست]]/Jan[[#This Row],[مبلغ التأمين]] -> 0.0225 | S132: محصل | T132: Cash | U132: 7951.86855 | V132: مسددة | W132: 0.3 | X132: 726 | AA132: محصلة | AB132: =MONTH(Jan[[#This Row],[شهر الاصدار]]) -> 1
A133: 339 | B133: 2020-01-01 | C133: اصدار | D133: تسويق - سيارات | E133: سيارات | F133: F | G133: POLICY 130 | H133: CUST 130 | I133: NON BMW | J133: RENAULT | K133: 12675 | L133: 193500 | M133: 5430.59 | N133: 5805 | O133: 5805 | P133: 4353.75 | Q133: =Jan[[#This Row],[تامين العميل فى الريكوست]]/Jan[[#This Row],[مبلغ التأمين]] -> 0.0225 | S133: محصل | T133: visa | U133: 4257.28185 | V133: غير مسددة | W133: 0.3 | X133: 727 | AA133: واجبة التحصيل | AB133: =MONTH(Jan[[#This Row],[شهر الاصدار]]) -> 1
A134: 340 | B134: 2020-01-01 | C134: اصدار | D134: تسويق - سيارات | E134: سيارات | F134: F | G134: POLICY 131 | H134: CUST 131 | I134: NON BMW | J134: TOYOTA | K134: 12676 | L134: 327000 | M134: 9212.46 | N134: 9810 | O134: 9810 | P134: 7357.5 | Q134: =Jan[[#This Row],[تامين العميل فى الريكوست]]/Jan[[#This Row],[مبلغ التأمين]] -> 0.0225 | S134: محصل | T134: Bank Trf | U134: 7184.4489 | V134: مسددة | W134: 0.3 | X134: 728 | AA134: مؤجله | AB134: =MONTH(Jan[[#This Row],[شهر الاصدار]]) -> 1
A135: 341 | B135: 2020-01-01 | C135: اصدار | D135: تسويق - سيارات | E135: سيارات | F135: F | G135: POLICY 132 | H135: CUST 132 | I135: BMW | J135: Bmw | K135: 12677 | L135: 700000 | M135: 28041.55 | N135: 29750 | O135: 29750 | P135: 28000 | Q135: =Jan[[#This Row],[تامين العميل فى الريكوست]]/Jan[[#This Row],[مبلغ التأمين]] -> 0.04 | S135: محصل | T135: تقسيط | U135: 17762.23738 | V135: غير مسددة | W135: 0.45 | X135: 729 | AA135: غير محصل | AB135: =MONTH(Jan[[#This Row],[شهر الاصدار]]) -> 1
A136: 342 | B136: 2020-01-01 | C136: اصدار | D136: تسويق - سيارات | E136: سيارات | F136: F | G136: POLICY 133 | H136: CUST 133 | I136: BMW | J136: Bmw | K136: 12678 | L136: 1850000 | M136: 74193.58 | N136: 78625 | O136: 78625 | P136: 74000 | Q136: =Jan[[#This Row],[تامين العميل فى الريكوست]]/Jan[[#This Row],[مبلغ التأمين]] -> 0.04 | S136: محصل | T136: Cash | U136: 46907.24455 | V136: مسددة | W136: 0.45 | X136: 730 | AA136: محصلة | AB136: =MONTH(Jan[[#This Row],[شهر الاصدار]]) -> 1
A137: 343 | B137: 2020-01-01 | C137: اصدار | D137: تسويق - سيارات | E137: سيارات | F137: C | G137: POLICY 134 | H137: CUST 134 | I137: NON BMW | J137: DFSK | K137: 12679 | L137: 313000 | M137: 7930 | N137: 8451 | O137: 8451 | P137: 7042.5 | Q137: =Jan[[#This Row],[تامين العميل فى الريكوست]]/Jan[[#This Row],[مبلغ التأمين]] -> 0.0225 | S137: محصل | T137: visa | U137: 7320.975 | V137: غير مسددة | W137: 0.15 | X137: 731 | AA137: واجبة التحصيل | AB137: =MONTH(Jan[[#This Row],[شهر الاصدار]]) -> 1
A138: 344 | B138: 2020-01-01 | C138: اصدار | D138: تسويق - سيارات | E138: سيارات | F138: B | G138: POLICY 135 | H138: CUST 135 | I138: BMW | J138: Bmw | K138: 12680 | L138: 1357000 | M138: 54475.6 | N138: 57673 | O138: 57673 | P138: 54280 | Q138: =Jan[[#This Row],[تامين العميل فى الريكوست]]/Jan[[#This Row],[مبلغ التأمين]] -> 0.04 | S138: محصل | T138: Bank Trf | U138: 39559.863 | V138: مسددة | W138: 0.35 | X138: 732 | AA138: مؤجله | AB138: =MONTH(Jan[[#This Row],[شهر الاصدار]]) -> 1
A139: 345 | B139: 2020-01-01 | C139: اصدار | D139: تسويق - سيارات | E139: سيارات | F139: C | G139: POLICY 136 | H139: CUST 136 | I139: NON BMW | J139: MG | K139: 12681 | L139: 267000 | M139: 7513 | N139: 8009 | O139: 8009 | P139: 6007.5 | Q139: =Jan[[#This Row],[تامين العميل فى الريكوست]]/Jan[[#This Row],[مبلغ التأمين]] -> 0.0225 | S139: محصل | T139: تقسيط | U139: 6938.3975 | V139: غير مسددة | W139: 0.15 | X139: 733 | AA139: غير محصل | AB139: =MONTH(Jan[[#This Row],[شهر الاصدار]]) -> 1
A140: 346 | B140: 2020-01-01 | C140: اصدار | D140: تامينات عامة - بافاريا | E140: سيارات | F140: A | G140: POLICY 137 | H140: CUST 137 | I140: BMW | J140: Bmw | K140: 12682 | L140: 2500000 | M140: 47118.03 | N140: 50000 | O140: 50000 | P140: 50000 | Q140: =Jan[[#This Row],[تامين العميل فى الريكوست]]/Jan[[#This Row],[مبلغ التأمين]] -> 0.02 | S140: محصل | T140: Cash | U140: 45523.78715 | V140: مسددة | W140: 0.1 | X140: 734 | AA140: محصلة | AB140: =MONTH(Jan[[#This Row],[شهر الاصدار]]) -> 1
A141: 347 | B141: 2020-01-01 | C141: اصدار | D141: تامينات عامة - بافاريا | E141: سيارات | F141: A | G141: POLICY 138 | H141: CUST 138 | I141: BMW | J141: Bmw | K141: 12683 | L141: 1298000 | M141: 24417.37 | N141: 25960 | O141: 25960 | P141: 25960 | Q141: =Jan[[#This Row],[تامين العميل فى الريكوست]]/Jan[[#This Row],[مبلغ التأمين]] -> 0.02 | S141: محصل | T141: visa | U141: 23640.34985 | V141: غير مسددة | W141: 0.1 | X141: 735 | AA141: واجبة التحصيل | AB141: =MONTH(Jan[[#This Row],[شهر الاصدار]]) -> 1
A142: 348 | B142: 2020-01-01 | C142: اصدار | D142: تسويق - سيارات | E142: سيارات | F142: C | G142: POLICY 139 | H142: CUST 139 | I142: NON BMW | J142: MG | K142: 12684 | L142: 280000 | M142: 7882 | N142: 8400 | O142: 8400 | P142: 6300 | Q142: =Jan[[#This Row],[تامين العميل فى الريكوست]]/Jan[[#This Row],[مبلغ التأمين]] -> 0.0225 | S142: محصل | T142: Bank Trf | U142: 7276.815 | V142: مسددة | W142: 0.15 | X142: 736 | AA142: مؤجله | AB142: =MONTH(Jan[[#This Row],[شهر الاصدار]]) -> 1
A143: 350 | B143: 2020-01-01 | C143: اصدار | D143: تسويق - سيارات | E143: سيارات | F143: F | G143: POLICY 140 | H143: CUST 140 | I143: NON BMW | J143: SSANG YONG | K143: 12685 | L143: 340000 | M143: 9580.74 | N143: 10200 | O143: 10200 | P143: 7650 | Q143: =Jan[[#This Row],[تامين العميل فى الريكوست]]/Jan[[#This Row],[مبلغ التأمين]] -> 0.0225 | S143: محصل | T143: تقسيط | U143: 7469.4891 | V143: غير مسددة | W143: 0.3 | X143: 737 | AA143: غير محصل | AB143: =MONTH(Jan[[#This Row],[شهر الاصدار]]) -> 1
A144: 351 | B144: 2020-01-01 | C144: اصدار | D144: تسويق - سيارات | E144: سيارات | F144: B | G144: POLICY 141 | H144: CUST 141 | I144: BMW | J144: Bmw | K144: 12686 | L144: 880000 | M144: 35275.33 | N144: 37400 | O144: 37400 | P144: 35200 | Q144: =Jan[[#This Row],[تامين العميل فى الريكوست]]/Jan[[#This Row],[مبلغ التأمين]] -> 0.04 | S144: محصل | T144: Cash | U144: 25670.95278 | V144: مسددة | W144: 0.35 | X144: 738 | AA144: محصلة | AB144: =MONTH(Jan[[#This Row],[شهر الاصدار]]) -> 1
A145: 352 | B145: 2020-01-01 | C145: اصدار | D145: تسويق - سيارات | E145: سيارات | F145: F | G145: POLICY 142 | H145: CUST 142 | I145: BMW | J145: Bmw | K145: 12687 | L145: 850000 | M145: 34061.38 | N145: 36125 | O145: 36125 | P145: 34000 | Q145: =Jan[[#This Row],[تامين العميل فى الريكوست]]/Jan[[#This Row],[مبلغ التأمين]] -> 0.04 | S145: محصل | T145: visa | U145: 21563.76005 | V145: غير مسددة | W145: 0.45 | X145: 739 | AA145: واجبة التحصيل | AB145: =MONTH(Jan[[#This Row],[شهر الاصدار]]) -> 1
A146: 353 | B146: 2020-01-01 | C146: اصدار | D146: تسويق - سيارات | E146: سيارات | F146: F | G146: POLICY 143 | H146: CUST 143 | I146: NON BMW | J146: JEEP | K146: 12688 | L146: 330000 | M146: 9297.45 | N146: 9900 | O146: 9900 | P146: 7425 | Q146: =Jan[[#This Row],[تامين العميل فى الريكوست]]/Jan[[#This Row],[مبلغ التأمين]] -> 0.0225 | S146: محصل | T146: Bank Trf | U146: 7250.22675 | V146: مسددة | W146: 0.3 | X146: 740 | AA146: مؤجله | AB146: =MONTH(Jan[[#This Row],[شهر الاصدار]]) -> 1
A147: 354 | B147: 2020-01-01 | C147: اصدار | D147: تسويق - سيارات | E147: سيارات | F147: F | G147: POLICY 144 | H147: CUST 144 | I147: NON BMW | J147: KIA | K147: 12689 | L147: 330000 | M147: 9297.45 | N147: 9900 | O147: 9900 | P147: 7425 | Q147: =Jan[[#This Row],[تامين العميل فى الريكوست]]/Jan[[#This Row],[مبلغ التأمين]] -> 0.0225 | S147: محصل | T147: تقسيط | U147: 7250.22675 | V147: غير مسددة | W147: 0.3 | X147: 741 | AA147: غير محصل | AB147: =MONTH(Jan[[#This Row],[شهر الاصدار]]) -> 1
A148: 355 | B148: 2020-01-01 | C148: اصدار | D148: تسويق - سيارات | E148: سيارات | F148: C | G148: POLICY 145 | H148: CUST 145 | I148: NON BMW | J148: BYD | K148: 12690 | L148: 173000 | M148: 4887.25 | N148: 5190 | O148: 5190 | P148: 3892.5 | Q148: =Jan[[#This Row],[تامين العميل فى الريكوست]]/Jan[[#This Row],[مبلغ التأمين]] -> 0.0225 | S148: محصل | T148: Cash | U148: 4493.566875 | V148: مسددة | W148: 0.15 | X148: 742 | AA148: محصلة | AB148: =MONTH(Jan[[#This Row],[شهر الاصدار]]) -> 1
A149: 355 | B149: 2020-01-01 | C149: اصدار | D149: تسويق - سيارات | E149: سيارات | F149: C | G149: POLICY 146 | H149: CUST 146 | I149: NON BMW | J149: BYD | K149: 12691 | L149: 173000 | M149: 4887.25 | N149: 5190 | O149: 5190 | P149: 3892.5 | Q149: =Jan[[#This Row],[تامين العميل فى الريكوست]]/Jan[[#This Row],[مبلغ التأمين]] -> 0.0225 | S149: محصل | T149: visa | U149: 4493.566875 | V149: غير مسددة | W149: 0.15 | X149: 743 | AA149: واجبة التحصيل | AB149: =MONTH(Jan[[#This Row],[شهر الاصدار]]) -> 1
A150: 355 | B150: 2020-01-01 | C150: اصدار | D150: تسويق - سيارات | E150: سيارات | F150: C | G150: POLICY 147 | H150: CUST 147 | I150: NON BMW | J150: BYD | K150: 12692 | L150: 173000 | M150: 4887.25 | N150: 5190 | O150: 5190 | P150: 3892.5 | Q150: =Jan[[#This Row],[تامين العميل فى الريكوست]]/Jan[[#This Row],[مبلغ التأمين]] -> 0.0225 | S150: غير محصل | T150: Bank Trf | U150: 4493.566875 | V150: مسددة | W150: 0.15 | X150: 744 | AA150: مؤجله | AB150: =MONTH(Jan[[#This Row],[شهر الاصدار]]) -> 1
A151: 355 | B151: 2020-01-01 | C151: اصدار | D151: تسويق - سيارات | E151: سيارات | F151: C | G151: POLICY 148 | H151: CUST 148 | I151: NON BMW | J151: BYD | K151: 12693 | L151: 173000 | M151: 4887.25 | N151: 5190 | O151: 5190 | P151: 3892.5 | Q151: =Jan[[#This Row],[تامين العميل فى الريكوست]]/Jan[[#This Row],[مبلغ التأمين]] -> 0.0225 | S151: غير محصل | T151: تقسيط | U151: 4493.566875 | V151: غير مسددة | W151: 0.15 | X151: 745 | AA151: غير محصل | AB151: =MONTH(Jan[[#This Row],[شهر الاصدار]]) -> 1
A152: 356 | B152: 2020-01-01 | C152: اصدار | D152: تسويق - سيارات | E152: سيارات | F152: D | G152: POLICY 149 | H152: CUST 149 | I152: NON BMW | J152: BYD | K152: 12694 | L152: 150000 | M152: 4147.6 | N152: 4500 | O152: 4500 | P152: 3375 | Q152: =Jan[[#This Row],[تامين العميل فى الريكوست]]/Jan[[#This Row],[مبلغ التأمين]] -> 0.0225 | S152: غير محصل | T152: Cash | U152: 3908.967 | V152: مسددة | W152: 0.15 | X152: 746 | AA152: محصلة | AB152: =MONTH(Jan[[#This Row],[شهر الاصدار]]) -> 1
A153: 358 | B153: 2020-01-01 | C153: اصدار | D153: تسويق - سيارات | E153: سيارات | F153: F | G153: POLICY 150 | H153: CUST 150 | I153: NON BMW | J153: BYD | K153: 12695 | L153: 180000 | M153: 5048.16 | N153: 5400 | O153: 5400 | P153: 4050 | Q153: =Jan[[#This Row],[تامين العميل فى الريكوست]]/Jan[[#This Row],[مبلغ التأمين]] -> 0.0225 | S153: غير محصل | T153: visa | U153: 3961.2744 | V153: غير مسددة | W153: 0.3 | X153: 747 | AA153: واجبة التحصيل | AB153: =MONTH(Jan[[#This Row],[شهر الاصدار]]) -> 1
A154: 359 | B154: 2020-01-01 | C154: اصدار | D154: تسويق - سيارات | E154: سيارات | F154: J | G154: POLICY 151 | H154: CUST 151 | I154: NON BMW | J154: شيرى | K154: 12696 | L154: 199000 | M154: 5540.6 | N154: 5970 | O154: 5970 | P154: 4477.5 | Q154: =Jan[[#This Row],[تامين العميل فى الريكوست]]/Jan[[#This Row],[مبلغ التأمين]] -> 0.0225 | S154: غير محصل | T154: Bank Trf | U154: 4390.929 | V154: مسددة | W154: 0.3 | X154: 748 | AA154: مؤجله | AB154: =MONTH(Jan[[#This Row],[شهر الاصدار]]) -> 1
A155: 360 | B155: 2020-01-01 | C155: اصدار | D155: تسويق - سيارات | E155: سيارات | F155: D | G155: POLICY 152 | H155: CUST 152 | I155: NON BMW | J155: ASKODA | K155: 12697 | L155: 597000 | M155: 16807.6 | N155: 17910 | O155: 17910 | P155: 13432.5 | Q155: =Jan[[#This Row],[تامين العميل فى الريكوست]]/Jan[[#This Row],[مبلغ التأمين]] -> 0.0225 | S155: غير محصل | T155: تقسيط | U155: 15514.917 | V155: غير مسددة | W155: 0.15 | X155: 749 | AA155: غير محصل | AB155: =MONTH(Jan[[#This Row],[شهر الاصدار]]) -> 1
A156: 361 | B156: 2020-01-01 | C156: اصدار | D156: تسويق - سيارات | E156: سيارات | F156: D | G156: POLICY 153 | H156: CUST 153 | I156: NON BMW | J156: RENAUL | K156: 12698 | L156: 300000 | M156: 8385.7 | N156: 9000 | O156: 9000 | P156: 6750 | Q156: =Jan[[#This Row],[تامين العميل فى الريكوست]]/Jan[[#This Row],[مبلغ التأمين]] -> 0.0225 | S156: غير محصل | T156: Cash | U156: 7805.03775 | V156: مسددة | W156: 0.15 | X156: 750 | AA156: محصلة | AB156: =MONTH(Jan[[#This Row],[شهر الاصدار]]) -> 1
A157: 363 | B157: 2020-01-01 | C157: اصدار | D157: تسويق - سيارات | E157: سيارات | F157: C | G157: POLICY 154 | H157: CUST 154 | I157: NON BMW | J157: BYD | K157: 12699 | L157: 174000 | M157: 4879 | N157: 5320 | O157: 5320 | P157: 3915 | Q157: =Jan[[#This Row],[تامين العميل فى الريكوست]]/Jan[[#This Row],[مبلغ التأمين]] -> 0.0225 | S157: غير محصل | T157: visa | U157: 4624.7425 | V157: غير مسددة | W157: 0.15 | X157: 751 | AA157: واجبة التحصيل | AB157: =MONTH(Jan[[#This Row],[شهر الاصدار]]) -> 1
A158: 365 | B158: 2020-01-01 | C158: اصدار | D158: تسويق - سيارات | E158: سيارات | F158: F | G158: POLICY 155 | H158: CUST 155 | I158: NON BMW | J158: TOYOTA | K158: 12700 | L158: 325000 | M158: 9155.81 | N158: 9750 | O158: 9750 | P158: 7312.5 | Q158: =Jan[[#This Row],[تامين العميل فى الريكوست]]/Jan[[#This Row],[مبلغ التأمين]] -> 0.0225 | S158: غير محصل | T158: Bank Trf | U158: 7140.59415 | V158: مسددة | W158: 0.3 | X158: 752 | AA158: مؤجله | AB158: =MONTH(Jan[[#This Row],[شهر الاصدار]]) -> 1
A159: 366 | B159: 2020-01-01 | C159: اصدار | D159: تسويق - سيارات | E159: سيارات | F159: F | G159: POLICY 156 | H159: CUST 156 | I159: NON BMW | J159: CITREON | K159: 12701 | L159: 355000 | M159: 10005.67 | N159: 10650 | O159: 10650 | P159: 7987.5 | Q159: =Jan[[#This Row],[تامين العميل فى الريكوست]]/Jan[[#This Row],[مبلغ التأمين]] -> 0.0225 | S159: غير محصل | T159: تقسيط | U159: 7798.38405 | V159: غير مسددة | W159: 0.3 | X159: 753 | AA159: غير محصل | AB159: =MONTH(Jan[[#This Row],[شهر الاصدار]]) -> 1
A160: 367 | B160: 2020-01-01 | C160: اصدار | D160: تسويق - سيارات | E160: سيارات | F160: D | G160: POLICY 157 | H160: CUST 157 | I160: NON BMW | J160: CHEVORLET | K160: 12702 | L160: 207000 | P160: 4657.5 | Q160: =Jan[[#This Row],[تامين العميل فى الريكوست]]/Jan[[#This Row],[مبلغ التأمين]] -> 0.0225 | S160: غير محصل | T160: Cash | U160: 0 | V160: مسددة | W160: 0.15 | X160: 754 | AA160: محصلة | AB160: =MONTH(Jan[[#This Row],[شهر الاصدار]]) -> 1
A161: 368 | B161: 2020-01-01 | C161: اصدار | D161: تسويق - سيارات | E161: سيارات | F161: C | G161: POLICY 158 | H161: CUST 158 | I161: NON BMW | J161: BYD | K161: 12703 | L161: 150000 | M161: 4200 | N161: 4501 | O161: 4501 | P161: 3375 | Q161: =Jan[[#This Row],[تامين العميل فى الريكوست]]/Jan[[#This Row],[مبلغ التأمين]] -> 0.0225 | S161: غير محصل | T161: visa | U161: 3902.5 | V161: غير مسددة | W161: 0.15 | X161: 755 | AA161: واجبة التحصيل | AB161: =MONTH(Jan[[#This Row],[شهر الاصدار]]) -> 1
A162: 369 | B162: 2020-01-01 | C162: اصدار | D162: معارض | E162: سيارات | F162: A | G162: POLICY 159 | H162: CUST 159 | I162: BMW | J162: BMW | K162: 12704 | L162: 900000 | M162: 31773.37 | N162: 33750 | O162: 33750 | P162: 33750 | Q162: =Jan[[#This Row],[تامين العميل فى الريكوست]]/Jan[[#This Row],[مبلغ التأمين]] -> 0.0375 | S162: محصل | T162: Bank Trf | U162: 23185.35448 | V162: مسددة | W162: 0.35 | X162: 756 | AA162: مؤجله | AB162: =MONTH(Jan[[#This Row],[شهر الاصدار]]) -> 1
A163: 370 | B163: 2020-01-01 | C163: اصدار | D163: معارض | E163: سيارات | F163: J | G163: POLICY 160 | H163: CUST 160 | I163: BMW | J163: BMW | K163: 12705 | L163: 700000 | M163: 26343.3 | N163: 28000 | O163: 28000 | P163: 28000 | Q163: =Jan[[#This Row],[تامين العميل فى الريكوست]]/Jan[[#This Row],[مبلغ التأمين]] -> 0.04 | S163: غير محصل | T163: تقسيط | U163: 16738.23925 | V163: غير مسددة | W163: 0.45 | X163: 757 | AA163: غير محصل | AB163: =MONTH(Jan[[#This Row],[شهر الاصدار]]) -> 1
A164: 371 | B164: 2020-01-01 | C164: اصدار | D164: معارض | E164: سيارات | F164: C | G164: POLICY 161 | H164: CUST 161 | I164: BMW | J164: BMW | K164: 12706 | L164: 1475000 | M164: 52180 | N164: 55313 | O164: 55313 | P164: 44250 | Q164: =Jan[[#This Row],[تامين العميل فى الريكوست]]/Jan[[#This Row],[مبلغ التأمين]] -> 0.03 | S164: غير محصل | T164: Cash | U164: 33006.05 | V164: مسددة | W164: 0.45 | X164: 758 | AA164: محصلة | AB164: =MONTH(Jan[[#This Row],[شهر الاصدار]]) -> 1
A165: 372 | B165: 2020-01-01 | C165: اصدار | D165: معارض | E165: سيارات | F165: C | G165: POLICY 162 | H165: CUST 162 | I165: BMW | J165: BMW | K165: 12707 | L165: 1475000 | M165: 52200 | N165: 55313 | O165: 55313 | P165: 55313 | Q165: =Jan[[#This Row],[تامين العميل فى الريكوست]]/Jan[[#This Row],[مبلغ التأمين]] -> 0.03750033898 | S165: غير محصل | T165: visa | U165: 32997.5 | V165: غير مسددة | W165: 0.45 | X165: 759 | AA165: واجبة التحصيل | AB165: =MONTH(Jan[[#This Row],[شهر الاصدار]]) -> 1
A166: 374 | B166: 2020-01-01 | C166: اصدار | D166: معارض | E166: سيارات | F166: C | G166: POLICY 163 | H166: CUST 163 | I166: BMW | J166: BMW | K166: 12708 | L166: 1475000 | M166: 52180 | N166: 55313 | O166: 55313 | P166: 44250 | Q166: =Jan[[#This Row],[تامين العميل فى الريكوست]]/Jan[[#This Row],[مبلغ التأمين]] -> 0.03 | S166: غير محصل | T166: Bank Trf | U166: 33006.05 | V166: مسددة | W166: 0.45 | X166: 760 | AA166: مؤجله | AB166: =MONTH(Jan[[#This Row],[شهر الاصدار]]) -> 1
A167: 375 | B167: 2020-01-01 | C167: اصدار | D167: معارض | E167: سيارات | F167: C | G167: POLICY 164 | H167: CUST 164 | I167: BMW | J167: BMW | K167: 12709 | L167: 660000 | M167: 23290 | N167: 24750 | O167: 24750 | P167: 24750 | Q167: =Jan[[#This Row],[تامين العميل فى الريكوست]]/Jan[[#This Row],[مبلغ التأمين]] -> 0.0375 | S167: غير محصل | T167: تقسيط | U167: 14793.525 | V167: غير مسددة | W167: 0.45 | X167: 761 | AA167: غير محصل | AB167: =MONTH(Jan[[#This Row],[شهر الاصدار]]) -> 1
A168: 376 | B168: 2020-01-01 | C168: اصدار | D168: معارض | E168: سيارات | F168: C | G168: POLICY 165 | H168: CUST 165 | I168: BMW | J168: BMW | K168: 12710 | L168: 2500000 | M168: 88476 | N168: 93750 | O168: 93750 | P168: 93750 | Q168: =Jan[[#This Row],[تامين العميل فى الريكوست]]/Jan[[#This Row],[مبلغ التأمين]] -> 0.0375 | S168: غير محصل | T168: Cash | U168: 55926.51 | V168: مسددة | W168: 0.45 | X168: 762 | AA168: محصلة | AB168: =MONTH(Jan[[#This Row],[شهر الاصدار]]) -> 1
A169: 377 | B169: 2020-01-01 | C169: اصدار | D169: تجديدات | E169: سيارات | F169: C | G169: POLICY 166 | H169: CUST 166 | I169: BMW | J169: BMW | K169: 12711 | L169: 430000 | M169: 10101 | N169: 10750 | O169: 12900 | P169: 12900 | Q169: =Jan[[#This Row],[تامين العميل فى الريكوست]]/Jan[[#This Row],[مبلغ التأمين]] -> 0.03 | S169: غير محصل | T169: visa | U169: 6431.8225 | V169: غير مسددة | W169: 0.45 | X169: 763 | AA169: واجبة التحصيل | AB169: =MONTH(Jan[[#This Row],[شهر الاصدار]]) -> 1
A170: 378 | B170: 2020-01-01 | C170: اصدار | D170: معارض | E170: سيارات | F170: C | G170: POLICY 167 | H170: CUST 167 | I170: BMW | J170: BMW | K170: 12712 | L170: 1475000 | M170: 52180 | N170: 55313 | O170: 55313 | P170: 44250 | Q170: =Jan[[#This Row],[تامين العميل فى الريكوست]]/Jan[[#This Row],[مبلغ التأمين]] -> 0.03 | S170: غير محصل | T170: Bank Trf | U170: 33006.05 | V170: مسددة | W170: 0.45 | X170: 764 | AA170: مؤجله | AB170: =MONTH(Jan[[#This Row],[شهر الاصدار]]) -> 1
A171: 379 | B171: 2020-01-01 | C171: اصدار | D171: معارض | E171: سيارات | F171: C | G171: POLICY 168 | H171: CUST 168 | I171: BMW | J171: BMW | K171: 12713 | L171: 730000 | M171: 27520 | N171: 29200 | O171: 29200 | P171: 29200 | Q171: =Jan[[#This Row],[تامين العميل فى الريكوست]]/Jan[[#This Row],[مبلغ التأمين]] -> 0.04 | S171: غير محصل | T171: تقسيط | U171: 17435.2 | V171: غير مسددة | W171: 0.45 | X171: 765 | AA171: غير محصل | AB171: =MONTH(Jan[[#This Row],[شهر الاصدار]]) -> 1
A172: 380 | B172: 2020-01-01 | C172: اصدار | D172: معارض | E172: سيارات | F172: C | G172: POLICY 169 | H172: CUST 169 | I172: BMW | J172: BMW | K172: 12714 | L172: 1750000 | M172: 66050 | N172: 70000 | O172: 70000 | P172: 70000 | Q172: =Jan[[#This Row],[تامين العميل فى الريكوست]]/Jan[[#This Row],[مبلغ التأمين]] -> 0.04 | S172: غير محصل | T172: Cash | U172: 41763.625 | V172: مسددة | W172: 0.45 | X172: 766 | AA172: محصلة | AB172: =MONTH(Jan[[#This Row],[شهر الاصدار]]) -> 1
A173: 381 | B173: 2020-01-01 | C173: اصدار | D173: معارض | E173: سيارات | F173: C | G173: POLICY 170 | H173: CUST 170 | I173: BMW | J173: BMW | K173: 12715 | L173: 500000 | M173: 17660 | N173: 18755 | O173: 18755 | P173: 18755 | Q173: =Jan[[#This Row],[تامين العميل فى الريكوست]]/Jan[[#This Row],[مبلغ التأمين]] -> 0.03751 | S173: غير محصل | T173: visa | U173: 11205.35 | V173: غير مسددة | W173: 0.45 | X173: 767 | AA173: واجبة التحصيل | AB173: =MONTH(Jan[[#This Row],[شهر الاصدار]]) -> 1
A174: 382 | B174: 2020-01-01 | C174: اصدار | D174: معارض | E174: سيارات | F174: D | G174: POLICY 171 | H174: CUST 171 | I174: BMW | J174: BMW | K174: 12716 | L174: 1325000 | M174: 49826.53 | N174: 53000 | O174: 53000 | P174: 53000 | Q174: =Jan[[#This Row],[تامين العميل فى الريكوست]]/Jan[[#This Row],[مبلغ التأمين]] -> 0.04 | S174: غير محصل | T174: Bank Trf | U174: 31699.15843 | V174: مسددة | W174: 0.45 | X174: 768 | AA174: مؤجله | AB174: =MONTH(Jan[[#This Row],[شهر الاصدار]]) -> 1
A175: 383 | B175: 2020-01-01 | C175: اصدار | D175: معارض | E175: سيارات | F175: C | G175: POLICY 172 | H175: CUST 172 | I175: BMW | J175: BMW | K175: 12717 | L175: 1850000 | M175: 65460 | N175: 69375 | O175: 69375 | P175: 55500 | Q175: =Jan[[#This Row],[تامين العميل فى الريكوست]]/Jan[[#This Row],[مبلغ التأمين]] -> 0.03 | S175: غير محصل | T175: تقسيط | U175: 41390.85 | V175: غير مسددة | W175: 0.45 | X175: 769 | AA175: غير محصل | AB175: =MONTH(Jan[[#This Row],[شهر الاصدار]]) -> 1
A176: 385 | B176: 2020-01-01 | C176: اصدار | D176: معارض | E176: سيارات | F176: J | G176: POLICY 173 | H176: CUST 173 | I176: BMW | J176: BMW | K176: 12718 | L176: 730000 | M176: 29199.8 | N176: 31030 | O176: 31030 | P176: 31025 | Q176: =Jan[[#This Row],[تامين العميل فى الريكوست]]/Jan[[#This Row],[مبلغ التأمين]] -> 0.0425 | S176: غير محصل | T176: Cash | U176: 18547.0855 | V176: مسددة | W176: 0.45 | X176: 770 | AA176: محصلة | AB176: =MONTH(Jan[[#This Row],[شهر الاصدار]]) -> 1
A177: 389 | B177: 2020-01-01 | C177: اصدار | D177: معارض | E177: سيارات | F177: J | G177: POLICY 174 | H177: CUST 174 | I177: BMW | J177: BMW | K177: 12719 | L177: 900000 | M177: 36022.3 | N177: 38250 | O177: 38250 | P177: 38250 | Q177: =Jan[[#This Row],[تامين العميل فى الريكوست]]/Jan[[#This Row],[مبلغ التأمين]] -> 0.0425 | S177: غير محصل | T177: visa | U177: 22850.46675 | V177: غير مسددة | W177: 0.45 | X177: 771 | AA177: واجبة التحصيل | AB177: =MONTH(Jan[[#This Row],[شهر الاصدار]]) -> 1
A178: 390 | B178: 2020-01-01 | C178: اصدار | D178: معارض | E178: سيارات | F178: J | G178: POLICY 175 | H178: CUST 175 | I178: NON BMW | J178: Mini cooper | K178: 12720 | L178: 600000 | M178: 22566.2 | N178: 24000 | O178: 24000 | P178: 24000 | Q178: =Jan[[#This Row],[تامين العميل فى الريكوست]]/Jan[[#This Row],[مبلغ التأمين]] -> 0.04 | S178: غير محصل | T178: Bank Trf | U178: 14352.9495 | V178: مسددة | W178: 0.45 | X178: 772 | AA178: مؤجله | AB178: =MONTH(Jan[[#This Row],[شهر الاصدار]]) -> 1
A179: 391 | B179: 2020-01-01 | C179: اصدار | D179: معارض | E179: سيارات | F179: C | G179: POLICY 176 | H179: CUST 176 | I179: BMW | J179: BMW | K179: 12721 | L179: 1450000 | M179: 54718 | N179: 58000 | O179: 58000 | P179: 58000 | Q179: =Jan[[#This Row],[تامين العميل فى الريكوست]]/Jan[[#This Row],[مبلغ التأمين]] -> 0.04 | S179: غير محصل | T179: تقسيط | U179: 34608.055 | V179: غير مسددة | W179: 0.45 | X179: 773 | AA179: غير محصل | AB179: =MONTH(Jan[[#This Row],[شهر الاصدار]]) -> 1
A180: 392 | B180: 2020-01-01 | C180: اصدار | D180: معارض | E180: سيارات | F180: A | G180: POLICY 177 | H180: CUST 177 | I180: BMW | J180: BMW | K180: 12722 | L180: 1298000 | M180: 45866.86 | N180: 48675 | O180: 48675 | P180: 38940 | Q180: =Jan[[#This Row],[تامين العميل فى الريكوست]]/Jan[[#This Row],[مبلغ التأمين]] -> 0.03 | S180: محصل | T180: Cash | U180: 33424.26905 | V180: مسددة | W180: 0.35 | X180: 774 | AA180: محصلة | AB180: =MONTH(Jan[[#This Row],[شهر الاصدار]]) -> 1
A181: 395 | B181: 2020-01-01 | C181: اصدار | D181: تجديدات | E181: سيارات | F181: F | G181: POLICY 178 | H181: CUST 178 | I181: BMW | J181: BMW | K181: 12723 | L181: 950000 | M181: 38074.6 | N181: 40375 | O181: 40375 | P181: 33250 | Q181: =Jan[[#This Row],[تامين العميل فى الريكوست]]/Jan[[#This Row],[مبلغ التأمين]] -> 0.035 | S181: غير محصل | T181: visa | U181: 24098.1085 | V181: غير مسددة | W181: 0.45 | X181: 775 | AA181: واجبة التحصيل | AB181: =MONTH(Jan[[#This Row],[شهر الاصدار]]) -> 1
A182: 397 | B182: 2020-01-01 | C182: اصدار | D182: تجديدات | E182: سيارات | F182: F | G182: POLICY 179 | H182: CUST 179 | I182: BMW | J182: BMW | K182: 12724 | L182: 540000 | M182: 21620.4 | N182: 22950 | O182: 22950 | P182: 21600 | Q182: =Jan[[#This Row],[تامين العميل فى الريكوست]]/Jan[[#This Row],[مبلغ التأمين]] -> 0.04 | S182: غير محصل | T182: Bank Trf | U182: 13707.279 | V182: مسددة | W182: 0.45 | X182: 776 | AA182: مؤجله | AB182: =MONTH(Jan[[#This Row],[شهر الاصدار]]) -> 1
A183: 398 | B183: 2020-01-01 | C183: اصدار | D183: تجديدات | E183: سيارات | F183: F | G183: POLICY 180 | H183: CUST 180 | I183: BMW | J183: BMW | K183: 12725 | L183: 600000 | M183: 24028.33 | N183: 25500 | O183: 25500 | P183: 21000 | Q183: =Jan[[#This Row],[تامين العميل فى الريكوست]]/Jan[[#This Row],[مبلغ التأمين]] -> 0.035 | S183: غير محصل | T183: تقسيط | U183: 15227.88892 | V183: غير مسددة | W183: 0.45 | X183: 777 | AA183: غير محصل | AB183: =MONTH(Jan[[#This Row],[شهر الاصدار]]) -> 1
A184: 399 | B184: 2020-01-01 | C184: اصدار | D184: تجديدات | E184: سيارات | F184: C | G184: POLICY 181 | H184: CUST 181 | I184: BMW | J184: Bmw | K184: 12726 | L184: 576000 | M184: 20346 | N184: 21600 | O184: 21600 | P184: 20160 | Q184: =Jan[[#This Row],[تامين العميل فى الريكوست]]/Jan[[#This Row],[مبلغ التأمين]] -> 0.035 | S184: غير محصل | T184: Cash | U184: 12902.085 | V184: مسددة | W184: 0.45 | X184: 778 | AA184: محصلة | AB184: =MONTH(Jan[[#This Row],[شهر الاصدار]]) -> 1
A185: 400 | B185: 2020-01-01 | C185: اصدار | D185: تجديدات | E185: سيارات | F185: C | G185: POLICY 182 | H185: CUST 182 | I185: BMW | J185: Bmw | K185: 12727 | L185: 550000 | M185: 19426 | N185: 20625 | O185: 20625 | P185: 19250 | Q185: =Jan[[#This Row],[تامين العميل فى الريكوست]]/Jan[[#This Row],[مبلغ التأمين]] -> 0.035 | S185: غير محصل | T185: visa | U185: 12320.385 | V185: غير مسددة | W185: 0.45 | X185: 779 | AA185: واجبة التحصيل | AB185: =MONTH(Jan[[#This Row],[شهر الاصدار]]) -> 1
A186: 401 | B186: 2020-01-01 | C186: اصدار | D186: تجديدات | E186: سيارات | F186: C | G186: POLICY 183 | H186: CUST 183 | I186: BMW | J186: Bmw | K186: 12728 | L186: 1168200 | M186: 46834 | N186: 49650 | O186: 49650 | P186: 40887 | Q186: =Jan[[#This Row],[تامين العميل فى الريكوست]]/Jan[[#This Row],[مبلغ التأمين]] -> 0.035 | S186: غير محصل | T186: Bank Trf | U186: 29628.465 | V186: مسددة | W186: 0.45 | X186: 780 | AA186: مؤجله | AB186: =MONTH(Jan[[#This Row],[شهر الاصدار]]) -> 1
A187: 402 | B187: 2020-01-01 | C187: اصدار | D187: تجديدات | E187: سيارات | F187: C | G187: POLICY 184 | H187: CUST 184 | I187: BMW | J187: Bmw | K187: 12729 | L187: 295000 | M187: 10398 | N187: 11065 | O187: 11065 | P187: 10325 | Q187: =Jan[[#This Row],[تامين العميل فى الريكوست]]/Jan[[#This Row],[مبلغ التأمين]] -> 0.035 | S187: غير محصل | T187: تقسيط | U187: 6619.855 | V187: غير مسددة | W187: 0.45 | X187: 781 | AA187: غير محصل | AB187: =MONTH(Jan[[#This Row],[شهر الاصدار]]) -> 1
A188: 403 | B188: 2020-01-01 | C188: اصدار | D188: تجديدات | E188: سيارات | F188: C | G188: POLICY 185 | H188: CUST 185 | I188: BMW | J188: Bmw | K188: 12730 | L188: 324000 | M188: 14292 | N188: 15188 | O188: 15188 | P188: 11340 | Q188: =Jan[[#This Row],[تامين العميل فى الريكوست]]/Jan[[#This Row],[مبلغ التأمين]] -> 0.035 | S188: غير محصل | T188: Cash | U188: 9078.17 | V188: مسددة | W188: 0.45 | X188: 782 | AA188: محصلة | AB188: =MONTH(Jan[[#This Row],[شهر الاصدار]]) -> 1
A189: 407 | B189: 2020-01-01 | C189: اصدار | D189: تجديدات | E189: سيارات | F189: C | G189: POLICY 186 | H189: CUST 186 | I189: BMW | J189: Bmw | K189: 12731 | L189: 513000 | M189: 20538 | N189: 21803 | O189: 21803 | P189: 17955 | Q189: =Jan[[#This Row],[تامين العميل فى الريكوست]]/Jan[[#This Row],[مبلغ التأمين]] -> 0.035 | S189: غير محصل | T189: visa | U189: 13023.005 | V189: غير مسددة | W189: 0.45 | X189: 783 | AA189: واجبة التحصيل | AB189: =MONTH(Jan[[#This Row],[شهر الاصدار]]) -> 1
A190: 408 | B190: 2020-01-01 | C190: اصدار | D190: تجديدات | E190: سيارات | F190: C | G190: POLICY 187 | H190: CUST 187 | I190: BMW | J190: Bmw | K190: 12732 | L190: 420000 | M190: 14822 | N190: 15750 | O190: 15750 | P190: 14700 | Q190: =Jan[[#This Row],[تامين العميل فى الريكوست]]/Jan[[#This Row],[مبلغ التأمين]] -> 0.035 | S190: غير محصل | T190: Bank Trf | U190: 9413.595 | V190: مسددة | W190: 0.45 | X190: 784 | AA190: مؤجله | AB190: =MONTH(Jan[[#This Row],[شهر الاصدار]]) -> 1
A191: 410 | B191: 2020-01-01 | C191: اصدار | D191: تجديدات | E191: سيارات | F191: A | G191: POLICY 188 | H191: CUST 188 | I191: BMW | J191: Bmw | K191: 12733 | L191: 765000 | M191: 30607 | N191: 32515 | O191: 32515 | P191: 28688 | Q191: =Jan[[#This Row],[تامين العميل فى الريكوست]]/Jan[[#This Row],[مبلغ التأمين]] -> 0.03750065359 | S191: محصل | T191: تقسيط | U191: 22338.1725 | V191: غير مسددة | W191: 0.35 | X191: 785 | AA191: غير محصل | AB191: =MONTH(Jan[[#This Row],[شهر الاصدار]]) -> 1
A192: 411 | B192: 2020-01-01 | C192: اصدار | D192: تجديدات | E192: سيارات | F192: A | G192: POLICY 189 | H192: CUST 189 | I192: BMW | J192: Bmw | K192: 12734 | L192: 610000 | M192: 21504 | N192: 22875 | O192: 22875 | P192: 21350 | Q192: =Jan[[#This Row],[تامين العميل فى الريكوست]]/Jan[[#This Row],[مبلغ التأمين]] -> 0.035 | S192: محصل | T192: Cash | U192: 15724.92 | V192: مسددة | W192: 0.35 | X192: 786 | AA192: محصلة | AB192: =MONTH(Jan[[#This Row],[شهر الاصدار]]) -> 1
A193: 412 | B193: 2020-01-01 | C193: اصدار | D193: تجديدات | E193: سيارات | F193: A | G193: POLICY 190 | H193: CUST 190 | I193: BMW | J193: Bmw | K193: 12735 | L193: 684000 | M193: 24124 | N193: 25650 | O193: 25650 | P193: 23940 | Q193: =Jan[[#This Row],[تامين العميل فى الريكوست]]/Jan[[#This Row],[مبلغ التأمين]] -> 0.035 | S193: محصل | T193: visa | U193: 17628.77 | V193: غير مسددة | W193: 0.35 | X193: 787 | AA193: واجبة التحصيل | AB193: =MONTH(Jan[[#This Row],[شهر الاصدار]]) -> 1
A194: 413 | B194: 2020-01-01 | C194: اصدار | D194: تجديدات | E194: سيارات | F194: A | G194: POLICY 191 | H194: CUST 191 | I194: BMW | J194: Bmw | K194: 12736 | L194: 324000 | M194: 12906 | N194: 13770 | O194: 13770 | P194: 11340 | Q194: =Jan[[#This Row],[تامين العميل فى الريكوست]]/Jan[[#This Row],[مبلغ التأمين]] -> 0.035 | S194: محصل | T194: Bank Trf | U194: 9478.755 | V194: مسددة | W194: 0.35 | X194: 788 | AA194: مؤجله | AB194: =MONTH(Jan[[#This Row],[شهر الاصدار]]) -> 1
A195: 414 | B195: 2020-01-01 | C195: اصدار | D195: تجديدات | E195: سيارات | F195: F | G195: POLICY 192 | H195: CUST 192 | I195: BMW | J195: Bmw | K195: 12737 | L195: 1000000 | M195: 40081.21 | N195: 42500 | O195: 42500 | P195: 35000 | Q195: =Jan[[#This Row],[تامين العميل فى الريكوست]]/Jan[[#This Row],[مبلغ التأمين]] -> 0.035 | S195: محصل | T195: تقسيط | U195: 25365.28273 | V195: غير مسددة | W195: 0.45 | X195: 789 | AA195: غير محصل | AB195: =MONTH(Jan[[#This Row],[شهر الاصدار]]) -> 1
A196: 424 | B196: 2020-01-01 | C196: اصدار | D196: تجديدات | E196: سيارات | F196: F | G196: POLICY 193 | H196: CUST 193 | I196: BMW | J196: Bmw | K196: 12738 | L196: 500000 | M196: 20015.11 | N196: 21250 | O196: 21250 | P196: 17500 | Q196: =Jan[[#This Row],[تامين العميل فى الريكوست]]/Jan[[#This Row],[مبلغ التأمين]] -> 0.035 | S196: محصل | T196: Cash | U196: 12693.54047 | V196: مسددة | W196: 0.45 | X196: 790 | AA196: محصلة | AB196: =MONTH(Jan[[#This Row],[شهر الاصدار]]) -> 1
A197: 425 | B197: 2020-01-01 | C197: اصدار | D197: تجديدات | E197: سيارات | F197: F | G197: POLICY 194 | H197: CUST 194 | I197: BMW | J197: Bmw | K197: 12739 | L197: 730000 | M197: 29245.51 | N197: 31025 | O197: 31025 | P197: 21500 | Q197: =Jan[[#This Row],[تامين العميل فى الريكوست]]/Jan[[#This Row],[مبلغ التأمين]] -> 0.02945205479 | S197: محصل | T197: visa | U197: 18522.54448 | V197: غير مسددة | W197: 0.45 | X197: 791 | AA197: واجبة التحصيل | AB197: =MONTH(Jan[[#This Row],[شهر الاصدار]]) -> 1
A198: 427 | B198: 2020-01-01 | C198: اصدار | D198: تجديدات | E198: سيارات | F198: F | G198: POLICY 195 | H198: CUST 195 | I198: NON BMW | J198: HYUNDAI | K198: 12740 | L198: 210000 | M198: 5898.02 | N198: 6300 | O198: 6300 | P198: 7350 | Q198: =Jan[[#This Row],[تامين العميل فى الريكوست]]/Jan[[#This Row],[مبلغ التأمين]] -> 0.035 | S198: محصل | T198: Bank Trf | U198: 4619.0643 | V198: مسددة | W198: 0.3 | X198: 792 | AA198: مؤجله | AB198: =MONTH(Jan[[#This Row],[شهر الاصدار]]) -> 1
A199: 428 | B199: 2020-01-01 | C199: اصدار | D199: معارض | E199: سيارات | F199: F | G199: POLICY 196 | H199: CUST 196 | I199: BMW | J199: BMW | K199: 12741 | L199: 1850000 | M199: 74193.58 | N199: 78625 | O199: 78625 | P199: 69375 | Q199: =Jan[[#This Row],[تامين العميل فى الريكوست]]/Jan[[#This Row],[مبلغ التأمين]] -> 0.0375 | S199: محصل | T199: تقسيط | U199: 46907.24455 | V199: غير مسددة | W199: 0.45 | X199: 793 | AA199: غير محصل | AB199: =MONTH(Jan[[#This Row],[شهر الاصدار]]) -> 1
A200: 429 | B200: 2020-01-01 | C200: اصدار | D200: معارض | E200: سيارات | F200: C | G200: POLICY 197 | H200: CUST 197 | I200: BMW | J200: BMW | K200: 12742 | L200: 1475000 | M200: 55663 | N200: 59000 | O200: 59000 | P200: 59000 | Q200: =Jan[[#This Row],[تامين العميل فى الريكوست]]/Jan[[#This Row],[مبلغ التأمين]] -> 0.04 | S200: محصل | T200: Cash | U200: 35204.0675 | V200: مسددة | W200: 0.45 | X200: 794 | AA200: محصلة | AB200: =MONTH(Jan[[#This Row],[شهر الاصدار]]) -> 1
A201: 431 | B201: 2020-01-01 | C201: اصدار | D201: معارض | E201: سيارات | F201: J | G201: POLICY 198 | H201: CUST 198 | I201: BMW | J201: BMW | K201: 12743 | L201: 1750000 | M201: 66003.4 | N201: 70000 | O201: 70000 | P201: 70000 | Q201: =Jan[[#This Row],[تامين العميل فى الريكوست]]/Jan[[#This Row],[مبلغ التأمين]] -> 0.04 | S201: غير محصل | T201: visa | U201: 41783.5465 | V201: غير مسددة | W201: 0.45 | X201: 795 | AA201: واجبة التحصيل | AB201: =MONTH(Jan[[#This Row],[شهر الاصدار]]) -> 1
A202: 432 | B202: 2020-01-01 | C202: اصدار | D202: معارض | E202: سيارات | F202: A | G202: POLICY 199 | H202: CUST 199 | I202: BMW | J202: BMW | K202: 12744 | L202: 660000 | M202: 23274.79 | N202: 24750 | O202: 24750 | P202: 24750 | Q202: =Jan[[#This Row],[تامين العميل فى الريكوست]]/Jan[[#This Row],[مبلغ التأمين]] -> 0.0375 | S202: غير محصل | T202: Bank Trf | U202: 17011.13232 | V202: مسددة | W202: 0.35 | X202: 796 | AA202: مؤجله | AB202: =MONTH(Jan[[#This Row],[شهر الاصدار]]) -> 1
... 2048 more rows

Sheet Sheet1
AB2: CHASSI
E3: PoliCy.No | F3: =IF(ISERROR(MATCH($H$3,INDEX(بيانات1,0,11),0)),"",INDEX(بيانات1,MATCH($H$3,INDEX(بيانات1,0,11),0),7)) -> POLICY 3 | H3: 12548 | I3: Chassis
E5: =IF(ISERROR(MATCH($H$3,INDEX(بيانات1,0,11),0)),"",INDEX(بيانات1,MATCH($H$3,INDEX(بيانات1,0,11),0),8)) -> CUST 3 | I5: Customer Name
B6: =IF(ISERROR(MATCH($H$3,INDEX(بيانات1,0,11),0)),"",INDEX(بيانات1,MATCH($H$3,INDEX(بيانات1,0,11),0),21)) -> 56629.1725 | C6: صافي مستحق شركة التأمين | D6: =IF(ISERROR(MATCH($H$3,INDEX(بيانات1,0,11),0)),"",INDEX(بيانات1,MATCH($H$3,INDEX(بيانات1,0,11),0),23)) -> 0.35 | E6: نسبة العمولة | F6: =IF(ISERROR(MATCH($H$3,INDEX(بيانات1,0,11),0)),"",INDEX(بيانات1,MATCH($H$3,INDEX(بيانات1,0,11),0),18)) -> 0 | G6: المحصل فعليا | H6: =IF(ISERROR(MATCH($H$3,INDEX(بيانات1,0,11),0)),"",INDEX(بيانات1,MATCH($H$3,INDEX(بيانات1,0,11),0),2)) -> 2020-01-01 | I6: شهر الاصدار
B7: =IF(ISERROR(MATCH($H$3,INDEX(بيانات1,0,11),0)),"",INDEX(بيانات1,MATCH($H$3,INDEX(بيانات1,0,11),0),22)) -> مسددة | C7: سداد شركة التأمين | D7: =IF(ISERROR(MATCH($H$3,INDEX(بيانات1,0,11),0)),"",INDEX(بيانات1,MATCH($H$3,INDEX(بيانات1,0,11),0),24)) -> 600 | E7: العمولة ( المتوقعة) بعد الخصم والتحصيل | F7: =IF(ISERROR(MATCH($H$3,INDEX(بيانات1,0,11),0)),"",INDEX(بيانات1,MATCH($H$3,INDEX(بيانات1,0,11),0),19)) -> محصل | G7: موقف التحصيل | H7: =IF(ISERROR(MATCH($H$3,INDEX(بيانات1,0,11),0)),"",INDEX(بيانات1,MATCH($H$3,INDEX(بيانات1,0,11),0),3)) -> اصدار | I7: إصدار/إلغاء
D8: =IF(ISERROR(MATCH($H$3,INDEX(بيانات1,0,11),0)),"",INDEX(بيانات1,MATCH($H$3,INDEX(بيانات1,0,11),0),25)) -> 0 | E8: العمولة ( المتوقعة) المحصلة فعليا | F8: =IF(ISERROR(MATCH($H$3,INDEX(بيانات1,0,11),0)),"",INDEX(بيانات1,MATCH($H$3,INDEX(بيانات1,0,11),0),20)) -> Bank Trf | G8: طريقة التحصيل | H8: =IF(ISERROR(MATCH($H$3,INDEX(بيانات1,0,11),0)),"",INDEX(بيانات1,MATCH($H$3,INDEX(بيانات1,0,11),0),4)) -> معارض | I8: Account
D9: =IF(ISERROR(MATCH($H$3,INDEX(بيانات1,0,11),0)),"",INDEX(بيانات1,MATCH($H$3,INDEX(بيانات1,0,11),0),26)) -> 0 | E9: العمولة الفعلية المستلمة | H9: =IF(ISERROR(MATCH($H$3,INDEX(بيانات1,0,11),0)),"",INDEX(بيانات1,MATCH($H$3,INDEX(بيانات1,0,11),0),5)) -> سيارات | I9: Insurance Type
D10: =IF(ISERROR(MATCH($H$3,INDEX(بيانات1,0,11),0)),"",INDEX(بيانات1,MATCH($H$3,INDEX(بيانات1,0,11),0),27)) -> مؤجله | E10: موقف العمولة | H10: =IF(ISERROR(MATCH($H$3,INDEX(بيانات1,0,11),0)),"",INDEX(بيانات1,MATCH($H$3,INDEX(بيانات1,0,11),0),6)) -> A | I10: Insurance Com
H11: =IF(ISERROR(MATCH($H$3,INDEX(بيانات1,0,11),0)),"",INDEX(بيانات1,MATCH($H$3,INDEX(بيانات1,0,11),0),9)) -> BMW | I11: Brand
H12: =IF(ISERROR(MATCH($H$3,INDEX(بيانات1,0,11),0)),"",INDEX(بيانات1,MATCH($H$3,INDEX(بيانات1,0,11),0),10)) -> BMW | I12: Model
H13: =IF(ISERROR(MATCH($H$3,INDEX(بيانات1,0,11),0)),"",INDEX(بيانات1,MATCH($H$3,INDEX(بيانات1,0,11),0),12)) -> 2200000 | I13: مبلغ التأمين
H14: =IF(ISERROR(MATCH($H$3,INDEX(بيانات1,0,11),0)),"",INDEX(بيانات1,MATCH($H$3,INDEX(بيانات1,0,11),0),13)) -> 77807 | I14: القسط الاساسى
H15: =IF(ISERROR(MATCH($H$3,INDEX(بيانات1,0,11),0)),"",INDEX(بيانات1,MATCH($H$3,INDEX(بيانات1,0,11),0),14)) -> 82500 | I15: القسط الأجمالى
H16: =IF(ISERROR(MATCH($H$3,INDEX(بيانات1,0,11),0)),"",INDEX(بيانات1,MATCH($H$3,INDEX(بيانات1,0,11),0),15)) -> 82500 | I16: تامين العميل
H17: =IF(ISERROR(MATCH($H$3,INDEX(بيانات1,0,11),0)),"",INDEX(بيانات1,MATCH($H$3,INDEX(بيانات1,0,11),0),16)) -> 66000 | I17: تامين العميل فى الريكوست
H18: =IF(ISERROR(MATCH($H$3,INDEX(بيانات1,0,11),0)),"",INDEX(بيانات1,MATCH($H$3,INDEX(بيانات1,0,11),0),17)) -> 0.03 | I18: نسبة الاصدار
